Cogmind - Beta 13 @@@ ROGUE MODE // 2024.06.09 @ 20:42:51 Player: Waste Result: Escaped! Performance ------------- Evolutions (9) 4500 Regions Visited (33) 6600 Robots Destroyed (303) 1515 Value Destroyed (11908) 11908 Prototype IDs (66) 1320 Alien Tech Used (6) 1200 Bonus (7564) 7564 TOTAL SCORE: 34607 Bonus ------- High Alert Combat Kills 1196 Follower Combat Kills 1849 Network Hubs Disabled 200 Met Data Miner 300 Met Zhirov 300 A7 Reached Mainframe 300 Met R17 at Cetus 500 Win 3000 Friendly Fire -81 Cogmind --------- Core Integrity 678/1600 Matter 218/300 Energy 99/100 System Corruption 7% Temperature Cool (9) Movement Core (50) Location To Epsilon Eridani Parts ------- > --- POWER (3) -------- (None) > --- PROPULSION (8) --- (None) > --- UTILITY (12) ----- (None) > --- WEAPON (2) ------- (None) > --- INVENTORY (5) ---- Light Quantum Reactor Peak State ------------ > --- POWER ------------ Light Particle Reactor Micro Antimatter Reactor Micro Antimatter Reactor > --- PROPULSION ------- Antigrav Array Antigrav Array Antigrav Array Antigrav Array > --- UTILITY ---------- 2N-1CE's Frost Array Large Storage Unit Structural Scanner Experimental Optical Array Experimental Sensor Array Advanced Signal Interpreter Advanced Transmission Jammer Phase Redirector Hacking Suite Advanced Hacking Suite Advanced Hacking Suite Experimental System Shield > --- WEAPON ----------- Sigix Broadsword > --- INVENTORY -------- Experimental Energy Well Advanced ECM Suite Improved Reaction Control System Centrium Heavy Armor Plating Thermal Barrier EM Disruption Field Experimental EM Disruption Field Experimental Force Field Dimensional Node Initializer Transdimensional Reconstructor Subatomic Replicator Cooled Nova Cannon Hypervelocity Multirail Ragnarok Missile Launcher [Rating: 208] Favorites ----------- Power Improved Deuterium Engine Engine Improved Deuterium Engine Power Core Micro Nuclear Core Reactor Micro Antimatter Reactor Propulsion Linear Gravjet Treads Armored Treads Leg Aluminum Leg Hover Unit Linear Gravjet Utility Large Storage Unit Device Experimental Sensor Array Storage Large Storage Unit Processor Improved Signal Interpreter Hackware Advanced Hacking Suite Protection Hardened Medium Armor Plating Artifact Phase Redirector Weapon Lance Energy Gun Spread Laser Energy Cannon Phase Cannon Ballistic Gun Makeshift Shrapnel Gun Ballistic Cannon Mini Assault Cannon Launcher Ragnarok Missile Launcher Impact Weapon Core Stripper Slashing Weapon Katana Piercing Weapon Lance Special Melee Weapon Datajack Build | -11 -10 -10 -9 -9 -8 -7 -7 -7 -7 -7 -7 -6 -6 -6 -6 -6 -5 -5 -5 -5 -5 -5 -4 -4 -4 -4 -3 -3 -3 -2 -2 -2 -1 ------- Run | Yrd Mat Min Mat Min Mat Fac Was Fac Low Low Zio Pro Fac Low Low Dat Pro Fac Ext Cet Arc Hub Fac Upp Upp Zhi Pro Res Tes Res Qua Sec Acc Slots Evolved 18 | . . . 2 . 2 2 . . . . . . 2 . . . . 2 . . . . 2 . . . . 2 . 2 . . 2 Power 2 | . . . . . . . . . . . . . 1 . . . . . . . . . . . . . . . . 1 . . . Propulsion 6 | . . . 2 . . 1 . . . . . . . . . . . 1 . . . . . . . . . 1 . 1 . . . Utility 10 | . . . . . 2 1 . . . . . . 1 . . . . 1 . . . . 2 . . . . 1 . . . . 2 Weapon . | . . . . . . . . . . . . . . . . . . . . . . . . . . . . . . . . . . Parts Attached 553 | . 13 2 19 6 26 37 . 27 4 2 10 5 27 8 12 2 13 54 19 7 21 7 13 3 5 7 12 23 46 37 30 4 52 Power 40 | . 1 1 2 . 2 4 . . . . . . 1 . . . . 1 1 1 2 1 2 . 1 . . 1 4 2 3 . 10 Engine 11 | . 1 1 2 . 1 1 . . . . . . . . . . . . . 1 2 . . . . . . . . . . . 2 Core 12 | . . . . . 1 3 . . . . . . 1 . . . . . 1 . . 1 1 . 1 . . 1 2 . . . . Reactor 17 | . . . . . . . . . . . . . . . . . . 1 . . . . 1 . . . . . 2 2 3 . 8 Propulsion 105 | . 3 . 10 . 8 7 . 10 . . . . 5 . . . . 13 1 . 7 1 . . . . . 11 7 11 1 . 10 Treads 14 | . . . 10 . 4 . . . . . . . . . . . . . . . . . . . . . . . . . . . . Leg 3 | . 3 . . . . . . . . . . . . . . . . . . . . . . . . . . . . . . . . Wheel . | . . . . . . . . . . . . . . . . . . . . . . . . . . . . . . . . . . Hover 88 | . . . . . 4 7 . 10 . . . . 5 . . . . 13 1 . 7 1 . . . . . 11 7 11 1 . 10 Flight . | . . . . . . . . . . . . . . . . . . . . . . . . . . . . . . . . . . Utility 277 | . 3 . 2 2 10 22 . 9 2 1 9 3 15 1 2 1 1 30 15 4 9 4 11 . 2 6 7 10 24 22 20 4 26 Device 187 | . 2 . 1 1 7 12 . 4 1 1 2 3 8 1 2 . 1 23 13 2 8 4 10 . 2 4 5 7 19 17 14 3 10 Storage 9 | . 1 . . . 1 . . 1 . . . . 1 . . . . . . . . . . . . 1 . 1 . . 1 . 2 Processor 18 | . . . . . 1 1 . . . . 5 . . . . . . 2 . 1 . . . . . . . 1 1 . 1 . 5 Hackware 11 | . . . . . . 3 . 1 . . 1 . 1 . . . . 1 . . . . 1 . . . . . 1 . . 1 1 Protection 46 | . . . 1 1 1 6 . 3 1 . 1 . 5 . . 1 . 4 2 1 1 . . . . 1 2 1 3 5 2 . 4 Artifact 6 | . . . . . . . . . . . . . . . . . . . . . . . . . . . . . . . 2 . 4 Weapon 131 | . 6 1 5 4 6 4 . 8 2 1 1 2 6 7 10 1 12 10 2 2 3 1 . 3 2 1 5 1 11 2 6 . 6 Energy Gun 14 | . 4 . 4 2 2 . . . . . . . . . . . . . . . . . . . . . . . . . . . 2 Energy Cannon 22 | . . . . . . . . . . . . . 2 3 5 . 5 2 . . . . . . . . . . 3 . . . 2 Ballistic Gun 17 | . . 1 . 2 2 . . . . . . . . . . . . . . 2 1 . . 2 1 . 3 . 1 1 . . 1 Ballistic Cannon 2 | . . . . . . 1 . . . . . . . . . . . . . . . . . . . . . . 1 . . . . Launcher 15 | . . . . . . 1 . 2 1 . 1 . 1 . . 1 1 1 1 . . . . 1 . 1 1 . . . 1 . 1 Special Weapon . | . . . . . . . . . . . . . . . . . . . . . . . . . . . . . . . . . . Impact Weapon 2 | . . . . . . . . . . . . . . . . . . . . . . . . . . . . . . . 2 . . Slashing Weapon 28 | . . . . . 2 2 . 3 . . . . 2 4 5 . 6 1 . . . . . . . . . . . . 3 . . Piercing Weapon 28 | . . . . . . . . 3 1 1 . 2 1 . . . . 6 1 . 2 1 . . 1 . 1 1 6 1 . . . Special Melee Weapon 3 | . 2 . 1 . . . . . . . . . . . . . . . . . . . . . . . . . . . . . . Unidentified Prototypes 38 | . . . . 1 1 1 . . . . 4 . . . . . . 2 . 1 . 1 . . . 4 . 4 6 1 10 1 1 Corrupted Parts 1 | . . . . . . . . . . . . . . . . . . . . . 1 . . . . . . . . . . . . System Corruption 7 | . . . . . . . . . . . . . . . . . . . . . 7 . . . . . . . . . . . . Parts Lost 72 | . 1 . 3 1 5 3 . 2 . . . . . . . . . . 3 1 . . . . . . . 1 2 14 2 1 33 Power 10 | . . . 1 . . . . . . . . . . . . . . . . . . . . . . . . . 1 . 1 1 6 Propulsion 28 | . . . . . 2 3 . 2 . . . . . . . . . . 3 . . . . . . . . 1 1 7 1 . 8 Utility 24 | . . . 1 . 1 . . . . . . . . . . . . . . 1 . . . . . . . . . 6 . . 15 Weapon 10 | . 1 . 1 1 2 . . . . . . . . . . . . . . . . . . . . . . . . 1 . . 4 Highest Loss Streak 14 | . 1 . 2 1 2 1 . 2 . . . . . . . . . . 1 1 . . . . . . . 1 2 11 2 1 14 To Critical Strikes . | . . . . . . . . . . . . . . . . . . . . . . . . . . . . . . . . . . Average Slot Usage (%) 96 | . 99 99 98 99 95 97 100 97 100 100 100 100 99 100 100 100 100 98 89 87 94 100 99 100 100 99 100 95 94 89 88 84 66 Engine 6 | . 14 14 10 11 6 3 7 7 7 7 7 7 6 6 6 6 6 1 . 4 5 6 3 . . . . . . . . . 1 Core 2 | . . . . . 2 3 . . . . . . 6 6 6 6 6 5 5 5 4 3 4 5 5 5 5 4 4 . . . . Reactor 1 | . . . . . . . . . . . . . . . . . . 3 5 . . . 1 5 5 5 5 4 3 11 12 11 8 Treads 8 | . . . 40 44 30 . . . . . . . . . . . . . . . . . . . . . . . . . . . . Leg 3 | . 28 28 2 . . . . . . . . . . . . . . . . . . . . . . . . . . . . . . Hover 21 | . . . . . 5 37 38 35 38 38 38 38 33 33 33 33 33 34 28 23 30 35 31 31 31 31 31 28 27 28 29 26 14 Device 12 | . 13 14 9 . 15 6 7 6 7 6 6 7 12 13 13 13 13 13 12 11 12 17 21 21 21 20 20 22 17 14 16 17 13 Storage 7 | . 14 14 11 11 9 7 7 7 7 7 7 7 6 6 6 6 6 5 5 5 5 5 5 5 5 5 5 4 4 4 4 4 3 Processor 5 | . . . . . . 7 7 7 7 7 7 7 6 6 6 6 6 7 11 10 11 11 10 10 10 10 10 9 9 7 7 8 12 Hackware 7 | . . . . . . 13 15 15 15 15 15 15 13 13 13 13 13 11 5 5 5 5 10 10 10 10 10 9 13 13 13 13 4 Protection 1 | . . . . 10 8 1 . . . . . . . . . . . . . 4 2 . . . . . . . 1 1 . . 1 Energy Gun 4 | . 17 20 10 11 7 . . . . . . . . . . . . . . . . . . . . . . . . . . . . Ballistic Gun 3 | . 10 7 11 10 8 . . . . . . . . . . . . . . 7 9 . . 3 6 5 7 1 . 1 . . 1 Slashing Weapon 2 | . . . . . 1 13 15 8 7 7 7 7 5 5 4 6 1 . . . . . . . . . . . . . 1 4 2 Piercing Weapon 3 | . . . . . . . . 5 7 6 7 5 5 6 6 6 6 10 10 3 1 11 10 6 3 5 2 7 8 6 1 . . Naked Turns 2 | . . . . . . . . . . . . . . . . . . . . . . . . . . . . . . . . . 2 Heaviest Build 108 | 12 50 51 56 61 65 41 35 51 51 51 51 42 57 49 49 57 49 59 66 62 63 48 54 57 56 55 65 61 73 84 108 72 106 Greatest Support 105 | 20 20 20 80 80 80 42 42 45 45 45 45 45 47 47 47 47 47 67 63 41 61 61 61 61 61 61 61 84 93 105 87 75 104 Greatest Overweight (x) 12 | . 2 2 2 1 7 1 . 1 1 1 1 . 1 1 1 1 1 . 1 1 1 . . . 1 . 1 1 . 1 1 . 12 Average Overweight (x) . | . 1 2 . . . . . . . . . . . . . . . . . 1 . . . . . . . . . . . . . Largest Inventory Capacity 20 | . 20 20 20 20 20 15 15 15 15 15 15 15 15 15 15 15 15 15 15 15 15 15 15 15 15 15 15 15 15 15 15 15 15 Average Capacity 16 | . 19 20 20 20 19 15 15 15 15 15 15 15 15 15 15 15 15 15 15 15 15 15 15 15 15 15 15 15 15 15 15 15 14 Most Carried 20 | . 20 20 20 20 20 15 15 15 15 15 15 15 15 15 15 15 15 15 15 15 15 15 15 15 15 15 15 15 15 15 15 15 15 Average Carried 16 | . 16 19 19 19 19 14 14 14 15 15 15 15 14 15 15 15 15 14 14 14 14 15 14 15 15 14 15 14 14 14 14 15 13 Final Capacity 20 | 8 20 20 20 20 15 15 15 15 15 15 15 15 15 15 15 15 15 15 15 15 15 15 15 15 15 15 15 15 15 15 15 15 5 Final Carried 20 | 6 20 20 20 19 13 15 15 15 15 15 15 15 15 15 15 15 15 15 15 15 15 15 15 15 15 15 15 15 15 13 15 15 1 Class Distribution -------------------- 21% | Hacker-Mutant 20% | Mutant 18% | Scavenger-Mutant 13% | Hacker-Scout 8% | Hacker-Ninja 4% | Hacker-Assassin 4% | Scavenger-Ninja Dominant Class ---------------- Scavenger-Mutant | -10/Materials Scavenger-Mutant | -10/Mines Scavenger-Mutant | -9/Materials Mutant | -9/Mines Mutant | -8/Materials Hacker-Mutant | -7/Factory Hacker-Mutant | -7/Waste Hacker-Mutant | -7/Factory Hacker-Mutant | -7/Lower Caves Hacker-Mutant | -7/Lower Caves Hacker-Mutant | -7/Zion Hacker-Mutant | -6/Proximity Caves Hacker-Scout | -6/Factory Hacker-Scout | -6/Lower Caves Hacker-Scout | -6/Lower Caves Hacker-Scout | -6/Data Miner Hacker-Assassin | -5/Proximity Caves Hacker-Mutant | -5/Factory Commander-Mutant | -5/Extension Commander-Mutant | -5/Cetus Scavenger-Mutant | -5/Archives Scavenger-Scout | -5/Hub_04(d) Scavenger-Ninja | -4/Factory Scavenger-Ninja | -4/Upper Caves Scavenger-Ninja | -4/Upper Caves Scavenger-Ninja | -4/Zhirov Scavenger-Scout | -3/Proximity Caves Hacker-Ninja | -3/Research Hacker-Ninja | -3/Testing Hacker-Scout | -2/Research Hacker-Mutant | -2/Quarantine Hacker-Ninja | -2/Section 7 Hacker-Ninja | -1/Access Resources | -11 -10 -10 -9 -9 -8 -7 -7 -7 -7 -7 -7 -6 -6 -6 -6 -6 -5 -5 -5 -5 -5 -5 -4 -4 -4 -4 -3 -3 -3 -2 -2 -2 -1 ----------- Run | Yrd Mat Min Mat Min Mat Fac Was Fac Low Low Zio Pro Fac Low Low Dat Pro Fac Ext Cet Arc Hub Fac Upp Upp Zhi Pro Res Tes Res Qua Sec Acc Matter Collected 8240 | 188 208 63 523 160 502 453 . 266 70 80 23 137 230 100 140 . . 650 337 119 531 106 67 92 107 20 354 325 328 533 323 41 1164 Remotely . | . . . . . . . . . . . . . . . . . . . . . . . . . . . . . . . . . . Salvage Created 13846 | . 436 41 1021 284 1045 865 . 578 171 79 . 415 531 . . . . 623 853 146 438 230 81 . 165 350 513 220 328 766 623 41 3003 Parts 773 | . 29 4 76 22 75 57 . 33 3 2 . 15 29 . . . . 50 36 7 35 12 4 . 1 5 20 17 30 57 6 5 143 Haulers Intercepted 9 | . 1 . 3 . 2 1 . . . . . . 1 . . . . . . . . . . . . . . . . . . . 1 Recyclers Shooed 5 | . 1 . 2 . . . . . . . . . . . . . . . 1 . . . . . . . . . . 1 . . . Parts Field Recycled . | . . . . . . . . . . . . . . . . . . . . . . . . . . . . . . . . . . Retrieved Matter . | . . . . . . . . . . . . . . . . . . . . . . . . . . . . . . . . . . Parts Self-Destructed 38 | . . . . . . . . . . 3 . 15 . . . . . . . . . . . . . 5 15 . . . . . . Prevented 10 | . . . . . . . . . . 3 . 1 . . 6 . . . . . . . . . . . . . . . . . . Kills | -11 -10 -10 -9 -9 -8 -7 -7 -7 -7 -7 -7 -6 -6 -6 -6 -6 -5 -5 -5 -5 -5 -5 -4 -4 -4 -4 -3 -3 -3 -2 -2 -2 -1 ------- Run | Yrd Mat Min Mat Min Mat Fac Was Fac Low Low Zio Pro Fac Low Low Dat Pro Fac Ext Cet Arc Hub Fac Upp Upp Zhi Pro Res Tes Res Qua Sec Acc Combat Hostiles Destroyed 188 | . 11 3 26 14 21 15 . 7 . 3 . 4 2 . . . . 13 12 2 1 2 . . . . 6 . 4 9 1 . 32 Melee 54 | . . . . . . 8 . 4 . . . 4 2 . . . . 6 11 . . 2 . . . . . . 4 7 . . 6 Guns 97 | . 11 3 26 14 21 . . . . . . . . . . . . . . 2 1 . . . . . 2 . . 2 . . 15 Cannons 4 | . . . . . . . . . . . . . . . . . . . . . . . . . . . . . . . . . 4 AOE 30 | . . . . . . 7 . 3 . 3 . . . . . . . 7 1 . . . . . . . 4 . . . . . 5 Classes Destroyed 22 | . 5 . 5 2 1 1 . . 1 . . . 1 . . . . 1 . . . . . . . . 1 . . . 1 . 3 Worker 20 | . 2 . 2 . . 3 . 4 . . . . . . . . . 2 . . . 2 . . . . . 1 1 . . . 3 Builder 13 | . . . 1 . 3 2 . . . . . . . . . . . . . . . . . . . . 1 1 . . . . 5 Tunneler 4 | . . . 2 . . . . 1 . . . . . . . . . . . . . . . . . . . . . . . . 1 Hauler 9 | . 1 . 3 . 2 1 . . . . . . 1 . . . . . . . . . . . . . . . . . . . 1 Recycler 16 | . . . . 2 1 2 . 2 . . . . 1 . . . . 1 1 . . . . . . . 1 1 . 1 1 . 2 Mechanic 4 | . . . . . . . . . . . . . 1 . . . . . . . . . 1 . . . . . . . . . 2 Operator 19 | . . . 2 . . . . 1 . . . . 1 . . . . 1 2 . 9 2 . . . . . . 1 . . . . Watcher 30 | . 3 . 5 . 1 2 . 1 . . . . 3 . . . . 3 . . . 1 1 . . . 2 2 1 1 1 1 2 Swarmer 43 | . 6 3 3 7 7 4 . . . . . 1 . . . . . 5 3 . . . . . . . 4 . . . . . . Cutter 4 | . . . . . . . . . . . . . . . . . . 4 . . . . . . . . . . . . . . . Grunt 73 | . 5 . 14 5 10 9 . 6 . 3 . 3 . . . . . . 3 . . 1 . . . . . . . . . . 14 Brawler 3 | . . . . . . . . . . . . . . . . . . . . . . . . . . . 2 . . . . . 1 Duelist 4 | . . . 1 . 1 . . . . . . . 1 . . . . . . . . . . . . . . . . . . . 1 Protector 1 | . . . . . . . . . . . . . . . . . . . . . . . . . . . . . . . . . 1 Sentry 20 | . . . 8 . 2 . . . . . . . 1 . . . . 1 6 . 1 1 . . . . . . . . . . . Demolisher 2 | . . . . 2 . . . . . . . . . . . . . . . . . . . . . . . . . . . . . Specialist 2 | . . . . . . . . . . . . . . . . . . . . . . . . . . . . . . . . . 2 Hunter 7 | . . . . . 1 . . . . . . . . . . . . . . . . . . . . . . . 1 . . . 5 Programmer 25 | . . . . . . 2 . 1 . . . . . . . . . 3 . . . . . . . . . . 3 9 . . 7 Heavy 1 | . . . . . . . . . . . . . . . . . . . . . . . . . . . . . . . . . 1 Cetus Guard 2 | . . . . . . . . . . . . . . . . . . . . 2 . . . . . . . . . . . . . Fortress 1 | . . . . . . . . . . . . . . . . . . . . . . . . . . . . . . . 1 . . Samaritan 1 | . . . . . . . . . 1 . . . . . . . . . . . . . . . . . . . . . . . . Best Kill Streak 9 | . 5 3 4 4 5 9 . 6 . 3 . 3 1 . . . . 8 3 1 3 4 1 . . . 4 1 3 4 1 1 9 Combat Bots Only 7 | . 3 3 4 4 4 7 . 4 . 3 . 3 1 . . . . 7 3 1 1 1 . . . . 4 . 3 3 1 . 6 Max Kills in Single Turn 6 | . 1 1 1 2 1 4 . 5 1 2 . 2 1 . . . . 6 1 1 2 1 1 . . . 4 1 1 1 1 1 3 Gunslinging 1 | . . . . 1 . . . . . . . . . . . . . . . . . . . . . . . . . . . . . Exploded 5 | . . . . . . 3 . 3 . 2 . . . . . . . 5 1 . . . . . . . 4 . . . . . 2 Melee 2 | . . . . . . 1 . 1 . . . 2 1 . . . . 1 1 . . 1 . . . . . . 1 1 . . 1 Uniques/NPCs Destroyed . | . . . . . . . . . . . . . . . . . . . . . . . . . . . . . . . . . . Combat | -11 -10 -10 -9 -9 -8 -7 -7 -7 -7 -7 -7 -6 -6 -6 -6 -6 -5 -5 -5 -5 -5 -5 -4 -4 -4 -4 -3 -3 -3 -2 -2 -2 -1 -------- Run | Yrd Mat Min Mat Min Mat Fac Was Fac Low Low Zio Pro Fac Low Low Dat Pro Fac Ext Cet Arc Hub Fac Upp Upp Zhi Pro Res Tes Res Qua Sec Acc Hostile Shots Fired 1182 | . 63 14 83 57 97 69 . 41 2 7 . . 46 . . . 6 49 26 2 3 10 2 6 . . 1 2 56 150 8 18 364 Missed 411 | . 16 3 28 10 27 21 . 10 2 2 . . 19 . . . 1 16 8 1 1 5 . 4 . . . 2 21 64 2 8 140 Damage Taken 15822 | . 502 112 698 1177 1031 803 . 462 . 138 . 21 342 . . . 74 656 598 83 53 136 48 47 . . 22 267 926 2345 261 154 4866 Core 2543 | . 79 9 68 154 126 139 . 157 . 18 . . 16 . . . . 92 101 . . 18 23 . . . . 61 88 429 43 . 922 Absorbed by Shields 97 | . . . . . . . . . . . . . . . . . . . 25 . . . . . . . . . . . . . 72 Redirected to Core 179 | . . . . . . . . . . . . . . . . . . . . . . . . . . . . . . . 43 . 136 Redirected to Shielding 272 | . . . . . . . . . . . . . . . . . . . . . . . . . . . 19 . 92 161 . . . Ignored by Resistances 1204 | . . . . . . . . . . . . . . . . . . 65 . . . . . . . . . . . 19 . . 1120 Regen/Repaired (Parts) 1143 | . . . . . . 115 . 163 . . 147 . 10 . . . . 32 . . . . 55 . . . . 54 . 169 . 25 373 Core Remaining (%) 73 | 100 . 64 . 44 77 . . . . . . 55 . . . . 98 . . . . 78 . . . . 98 . 88 . . 59 42 Volleys Fired 522 | . 47 4 70 31 71 6 . 1 . 2 . . 6 8 29 . 43 7 1 8 32 . . 8 1 . 34 . 5 14 . . 94 Largest 2 | . 2 2 2 2 2 1 . 1 . 1 . . 1 1 1 . 1 1 1 2 2 . . 2 2 . 2 . 1 1 . . 1 Hottest 150 | . 105 105 89 130 88 36 . 45 . 45 . . 85 85 85 . 85 85 39 68 70 . . 70 70 . 70 . 150 50 . . 150 Shots Fired 810 | . 94 9 137 56 143 6 . 1 . 2 . . 6 8 29 . 43 7 1 11 65 . . 11 2 . 67 . 5 14 . . 93 Gun 667 | . 94 9 137 56 143 . . . . . . . . . . . . . . 11 65 . . 11 2 . 66 . . 14 . . 59 Cannon 119 | . . . . . . . . . . . . . 6 8 29 . 43 5 . . . . . . . . . . 5 . . . 23 Launcher 24 | . . . . . . 6 . 1 . 2 . . . . . . . 2 1 . . . . . . . 1 . . . . . 11 Special . | . . . . . . . . . . . . . . . . . . . . . . . . . . . . . . . . . . Kinetic 414 | . 32 3 70 21 71 . . . . . . . . . . . . . . 11 65 . . 11 2 . 66 . . 14 . . 48 Thermal 362 | . 62 6 67 35 72 . . . . . . . 6 8 29 . 43 5 . . . . . . . . . . 5 . . . 24 Explosive 24 | . . . . . . 6 . 1 . 2 . . . . . . . 2 1 . . . . . . . 1 . . . . . 11 Electromagnetic 10 | . . . . . . . . . . . . . . . . . . . . . . . . . . . . . . . . . 10 Robot Hit Streak 15 | . 15 3 9 9 13 1 . 2 . 5 . . . . . . . 2 . 3 5 . . . . . 7 . . 6 . . 10 Robot Miss Streak 9 | . 4 3 9 9 5 1 . 1 . 1 . . . . . . . 4 . 3 2 . . . . . 3 . . 3 . . 6 Penetration Max 2 | . . . . . . . . . . . . . . . . . . . . 1 1 . . . . . 1 . . . . . 2 Secondary Targets 6 | . 1 2 1 1 1 . . . . . . . . . . . . . . . . . . . . . . . . . . . . Max Gunslinging Chain 1 | . 1 1 1 1 1 . . . . . . . . . . . . . . . . . . . . . . . . . . . . Shots Hit Robots 806 | . 59 5 124 48 104 39 . 27 6 2 . 9 20 . . . . 23 26 5 41 14 3 . 6 8 41 6 18 42 9 1 120 Core Hits 598 | . 22 4 127 57 67 30 . 34 . 9 . 7 10 . . . . 32 19 3 23 7 2 . . 3 20 3 12 21 4 1 81 Critical Kills 35 | . . . . . . . . . . . . . . . . . . . . 2 5 . . . . . 3 . . 3 . . 22 Critical Parts Destroyed 40 | . . . . . . . . . . . . . . . . . . . . . 8 . . . . . 2 . . 9 . . 21 Critical Strikes 115 | . 2 . 1 . 1 4 . 4 . . . 1 4 . . . . 4 3 2 13 . . . 1 1 11 1 2 16 . . 44 Burn 4 | . 2 . 1 . 1 . . . . . . . . . . . . . . . . . . . . . . . . . . . . Meltdown 1 | . . . . . . . . . . . . . . . . . . . . . . . . . . . . . . . . . 1 Destroy 79 | . . . . . . . . . . . . . . . . . . . . 2 13 . . . . . 10 . . 12 . . 42 Corrupt 1 | . . . . . . . . . . . . . . . . . . . . . . . . . . . . . . . . . 1 Sever 4 | . . . . . . 4 . . . . . . . . . . . . . . . . . . . . . . . . . . . Impale 26 | . . . . . . . . 4 . . . 1 4 . . . . 4 3 . . . . . 1 1 1 1 2 4 . . . Melee Attacks 635 | . . . . . 5 82 . 93 6 . 3 11 48 7 1 . 3 59 36 . . 25 10 1 9 8 4 20 46 68 27 6 57 Kinetic 4 | . . . . . . . . . . . . . . . . . . . . . . . . . . . . . . . 4 . . Impact . | . . . . . . . . . . . . . . . . . . . . . . . . . . . . . . . . . . Slashing 215 | . . . . . 5 82 . 29 1 . . 3 14 7 1 . 2 2 . . . . . . . . . . . . 6 6 57 Piercing 416 | . . . . . . . . 64 5 . 3 8 34 . . . 1 57 36 . . 25 10 1 9 8 4 20 46 68 17 . . Sneak Attacks 52 | . . . . . 1 7 . 7 3 . . . 4 . . . . 4 7 . . 3 1 . . . . 3 2 2 2 . 6 Combat Hostiles 2 | . . . . . . . . . . . . . . . . . . . 2 . . . . . . . . . . . . . . Follow-up Attacks 33 | . . . . . . 7 . 3 1 . . 1 3 . . . . 6 4 . . 2 . . . . . . 2 4 . . . Damage Inflicted 29415 | . 786 73 2033 792 1936 2139 . 1710 386 399 . 522 904 . . . . 1472 1166 82 881 614 204 . 383 673 1398 391 797 1299 439 79 7857 Guns 8252 | . 744 69 1982 696 1807 . . . . . . . . . . . . . . 82 881 . . . . . 1074 . . 184 . . 733 Cannons 1450 | . . . . . . . . . . . . . . . . . . . . . . . . . . . . . . . . . 1450 Explosions 4261 | . . . . . . 685 . 618 . 399 . . . . . . . 467 50 . . . . . . . 274 . . . . . 1768 Melee 15259 | . . . . . 129 1454 . 1092 386 . . 522 904 . . . . 1005 1116 . . 614 204 . 383 673 50 391 797 1115 439 79 3906 Ramming 193 | . 42 4 51 96 . . . . . . . . . . . . . . . . . . . . . . . . . . . . . Kinetic 5292 | . 287 41 1058 253 782 . . . . . . . . . . . . . . 82 881 . . . . . 1074 . . 184 94 . 556 Thermal 4363 | . 457 28 924 443 1025 . . 36 . . . . . . . . . . . . . . . . . . . . . . . . 1450 Explosive 4049 | . . . . . . 685 . 406 . 399 . . . . . . . 467 50 . . . . . . . 274 . . . . . 1768 Electromagnetic 353 | . . . . . . . . 176 . . . . . . . . . . . . . . . . . . . . . . . . 177 Impact . | . . . . . . . . . . . . . . . . . . . . . . . . . . . . . . . . . . Slashing 6138 | . . . . . 129 1454 . 184 94 . . 32 174 . . . . 86 . . . . . . . . . . . . . 79 3906 Piercing 9027 | . . . . . . . . 908 292 . . 490 730 . . . . 919 1116 . . 614 204 . 383 673 50 391 797 1115 345 . . Highest Corruption 9 | . 3 3 . . 2 1 1 2 2 2 6 . . . . . . 5 5 5 9 1 . . . . . 1 2 5 5 5 7 Average Corruption 3 | . 2 3 . . 2 1 1 1 2 2 5 . . . . . . 4 5 5 5 1 . . . . . 1 1 3 5 5 5 Corruption Purged 12 | . . . . . . . . . . . . . . . . . . . . . 12 . . . . . . . . . . . . Corruption Blocked . | . . . . . . . . . . . . . . . . . . . . . . . . . . . . . . . . . . Effects 170 | . 3 28 . . 10 . 1 10 2 1 3 . . . . . . 17 31 6 4 1 . . . . . 6 10 4 13 4 16 Message Errors 41 | . . 8 . . 1 . . 3 . . . . . . . . . 5 10 1 . . . . . . . 2 3 . 2 1 5 Matter Fused 38 | . 1 4 . . 3 . . 3 . . 1 . . . . . . 1 7 3 1 . . . . . . . 2 . 7 2 3 Heat Flow Errors 21 | . . 6 . . 1 . . 3 . . . . . . . . . 2 3 . . . . . . . . 1 1 2 1 . 1 Energy Discharges 20 | . 1 3 . . 1 . . . 1 1 . . . . . . . 6 1 . . 1 . . . . . 2 . . 1 . 2 Parts Rejected 3 | . . 1 . . . . . . . . . . . . . . . 1 . . . . . . . . . . . 1 . . . Parts Fused 5 | . . 1 . . . . . . . . . . . . . . . 1 2 . . . . . . . . . . 1 . . . Data Loss (minor) 25 | . . 3 . . 2 . 1 . . . 1 . . . . . . 1 5 2 2 . . . . . . 1 2 . 2 . 3 Data Loss (major) 7 | . . . . . . . . . 1 . 1 . . . . . . . 2 . . . . . . . . . 1 . . 1 1 Misfires 4 | . 1 1 . . 1 . . . . . . . . . . . . . . . 1 . . . . . . . . . . . . Alerts 5 | . . 1 . . 1 . . 1 . . . . . . . . . . 1 . . . . . . . . . 1 . . . . Weapon Failures 1 | . . . . . . . . . . . . . . . . . . . . . . . . . . . . . . . . . 1 Overload Shots 24 | . . . . . . . . . . . . . . . . . . . . . . . . . . . . . 1 . . . 23 Effects 2 | . . . . . . . . . . . . . . . . . . . . . . . . . . . . . . . . . 2 Short Circuit 2 | . . . . . . . . . . . . . . . . . . . . . . . . . . . . . . . . . 2 Overflow Damage 2950 | . . . . 5 . 111 . 209 259 . . 90 211 . . . . 204 19 . . 48 . . 111 188 30 237 103 64 65 . 996 Projectiles 121 | . . . . . . . . . . . . . . . . . . . . . . . . . . . . . . . . . 121 Explosions 139 | . . . . . . 22 . . . . . . . . . . . . . . . . . . . . . . . . . . 117 Melee 2690 | . . . . 5 . 89 . 209 259 . . 90 211 . . . . 204 19 . . 48 . . 111 188 30 237 103 64 65 . 758 Knockbacks . | . . . . . . . . . . . . . . . . . . . . . . . . . . . . . . . . . . Impact . | . . . . . . . . . . . . . . . . . . . . . . . . . . . . . . . . . . Kinetic . | . . . . . . . . . . . . . . . . . . . . . . . . . . . . . . . . . . Secondary . | . . . . . . . . . . . . . . . . . . . . . . . . . . . . . . . . . . Self-Inflicted Damage 478 | . . . . . . 31 . . . 60 . . . . . . . 37 . . . . . . . . . . . . . . 350 Shots 9 | . . . . . . 1 . . . 3 . . . . . . . 2 . . . . . . . . . . . . . . 3 Rammed 9 | . . . 5 4 . . . . . . . . . . . . . . . . . . . . . . . . . . . . . Targets Rammed 22 | . 9 1 6 6 . . . . . . . . . . . . . . . . . . . . . . . . . . . . . Kicked 10 | . 9 1 . . . . . . . . . . . . . . . . . . . . . . . . . . . . . . . Crushed 3 | . . . 1 2 . . . . . . . . . . . . . . . . . . . . . . . . . . . . . Highest Temperature 863 | . 75 247 30 581 55 25 . 253 . 48 . . 109 208 316 . 308 300 333 . 369 . . . 4 4 9 250 309 296 458 . 863 Average Temperature 103 | . 23 103 5 185 8 7 . 109 . 31 . . 30 87 116 . 114 93 144 . 179 . . . 4 4 5 66 77 159 118 . 385 Received Heat Transfer 2524 | . 210 . 204 123 279 324 . 210 . 63 . 9 51 . . . . 18 466 9 . 27 9 . . . . . . 171 27 18 306 Effects 59 | . . . . 18 . . . . . . . . . . . . 1 5 8 . 2 . . . . . . . 3 . 1 . 21 Shutdowns 9 | . . . . 2 . . . . . . . . . . . . . . 1 . 1 . . . . . . . . . 1 . 4 Energy Bleed 12 | . . . . 1 . . . . . . . . . . . . 1 2 4 . . . . . . . . . . . . . 4 Interference 15 | . . . . 2 . . . . . . . . . . . . . 3 3 . . . . . . . . . 3 . . . 4 Matter Decay 6 | . . . . . . . . . . . . . . . . . . . . . 1 . . . . . . . . . . . 5 Short Circuit 4 | . . . . 3 . . . . . . . . . . . . . . . . . . . . . . . . . . . . 1 Damage (minor) 1 | . . . . 1 . . . . . . . . . . . . . . . . . . . . . . . . . . . . . Damage (major) 10 | . . . . 7 . . . . . . . . . . . . . . . . . . . . . . . . . . . . 3 Damage (core) 2 | . . . . 2 . . . . . . . . . . . . . . . . . . . . . . . . . . . . . Siege Activations . | . . . . . . . . . . . . . . . . . . . . . . . . . . . . . . . . . . Robots Corrupted 1 | . . . . . . . . . . . . . . . . . . . . . . . . . . . . . . . . . 1 Combat Hostiles 1 | . . . . . . . . . . . . . . . . . . . . . . . . . . . . . . . . . 1 Parts Fried 1 | . . . . . . . . . . . . . . . . . . . . . . . . . . . . . . . . . 1 Impact Corruptions 2 | . . . . 2 . . . . . . . . . . . . . . . . . . . . . . . . . . . . . Robots Melted 1 | . . . . . . . . . . . . . . . . . . . . . . . . . . . . . . . . . 1 Combat Hostiles 1 | . . . . . . . . . . . . . . . . . . . . . . . . . . . . . . . . . 1 Parts Melted 6 | . 3 . 1 . . . . . . . . 1 . . . . . . . . . . . . . . . . . . . . 1 Heat Transferred 6000 | . 1228 62 1336 575 1999 . . 50 . . . . . . . . . . . . . . . . . . . . . . . . 750 Parts Sabotaged . | . . . . . . . . . . . . . . . . . . . . . . . . . . . . . . . . . . Parts Stolen . | . . . . . . . . . . . . . . . . . . . . . . . . . . . . . . . . . . Parts Stripped 18 | . . . . . . . . . . . . . . . . . . . . . . . . . . . . . . . 18 . . Power Chain Reactions . | . . . . . . . . . . . . . . . . . . . . . . . . . . . . . . . . . . Alert | -11 -10 -10 -9 -9 -8 -7 -7 -7 -7 -7 -7 -6 -6 -6 -6 -6 -5 -5 -5 -5 -5 -5 -4 -4 -4 -4 -3 -3 -3 -2 -2 -2 -1 ------- Run | Yrd Mat Min Mat Min Mat Fac Was Fac Low Low Zio Pro Fac Low Low Dat Pro Fac Ext Cet Arc Hub Fac Upp Upp Zhi Pro Res Tes Res Qua Sec Acc Peak Influence 1041 | . 165 70 523 514 322 464 134 403 . . . . 191 . . . . 545 845 786 593 1041 583 . . . . 193 217 329 354 295 869 Initial 509 | . . 41 . 199 49 105 104 93 . . . . 102 . . . . . 206 472 314 137 509 . . . . 94 20 104 166 94 176 Average 230 | . 62 19 225 283 166 308 119 208 . . . . 103 . . . . 254 445 651 525 637 548 . . . . 88 97 176 198 187 488 Maximum Alert Level 3 | . . . 2 2 1 2 . 2 . . . . . . . . . 2 3 3 2 3 2 . . . . . 1 1 1 1 3 Low Security (%) 55 | . 100 100 45 34 55 20 100 55 . . . . 100 . . . . 50 . . . 11 . . . . . 100 95 68 63 64 10 Level 1 25 | . . . 30 50 44 57 . 40 . . . . . . . . . 2 43 . 13 4 . . . . . . 4 31 36 35 37 Level 2 15 | . . . 23 15 . 22 . 4 . . . . . . . . . 47 41 66 86 46 100 . . . . . . . . . 14 Level 3 3 | . . . . . . . . . . . . . . . . . . . 15 33 . 37 . . . . . . . . . . 37 Level 4 . | . . . . . . . . . . . . . . . . . . . . . . . . . . . . . . . . . . Level 5 . | . . . . . . . . . . . . . . . . . . . . . . . . . . . . . . . . . . High Security . | . . . . . . . . . . . . . . . . . . . . . . . . . . . . . . . . . . Max Security . | . . . . . . . . . . . . . . . . . . . . . . . . . . . . . . . . . . Squads Dispatched 72 | . 2 . 4 . 5 6 . 7 . . . . 6 . . . . 3 3 . . 7 . . . . . 9 3 6 1 1 9 Investigation 18 | . . . 1 . 1 1 . 4 . . . . 2 . . . . 1 1 . . 3 . . . . . 3 . 1 . . . Extermination 14 | . . . . . . 2 . 2 . . . . 1 . . . . 1 . . . . . . . . . . 1 3 1 . 3 Reinforcement 33 | . 2 . 3 . 1 3 . 1 . . . . 2 . . . . 1 2 . . 2 . . . . . 6 2 2 . 1 5 Assault 3 | . . . . . . . . . . . . . . . . . . . . . . 2 . . . . . . . . . . 1 Garrison 4 | . . . . . 3 . . . . . . . 1 . . . . . . . . . . . . . . . . . . . . Intercept . | . . . . . . . . . . . . . . . . . . . . . . . . . . . . . . . . . . Searches Triggered 1 | . . . . . . . . . . . . . . . . . . . . . . . . . . . . . . . . . 1 Construction Impeded 2 | . . . . . . 1 . . . . . . . . . . . . . . . . . . . . . . . . . . 1 Haulers Reinforced 3 | . . . . . . 1 . . . . . . . . . . . . . . . . . . . . . 2 . . . . . Active Scanning Responses . | . . . . . . . . . . . . . . . . . . . . . . . . . . . . . . . . . . Cargo Convoy Interrupts 1 | . . . . . . . . . . . . . . . . . . 1 . . . . . . . . . . . . . . . Stealth | -11 -10 -10 -9 -9 -8 -7 -7 -7 -7 -7 -7 -6 -6 -6 -6 -6 -5 -5 -5 -5 -5 -5 -4 -4 -4 -4 -3 -3 -3 -2 -2 -2 -1 --------- Run | Yrd Mat Min Mat Min Mat Fac Was Fac Low Low Zio Pro Fac Low Low Dat Pro Fac Ext Cet Arc Hub Fac Upp Upp Zhi Pro Res Tes Res Qua Sec Acc Distress Signals 21 | . 1 . 4 . 4 1 . . . . . . . . . . . . 1 2 . 1 . . . . . 5 . . . . 2 Communications Jammed 53 | . . . . . . . . . . . . . . . . . . . 1 . . . . . . . 16 . 1 6 2 12 15 Distress Signals 41 | . . . . . . . . . . . . . . . . . . . 1 . . . . . . . 16 . 1 6 2 12 3 Times Spotted 454 | . 23 3 45 13 40 22 4 21 4 3 . 5 15 . 3 . 1 22 31 9 20 27 4 2 . . 5 6 13 46 6 12 49 Peak Tracking Total 17 | . 4 3 7 3 5 8 4 4 6 3 . 2 3 . 4 . 1 9 5 5 2 17 2 2 . . 3 2 5 16 2 6 8 Tactical Retreats 39 | . 1 . 1 1 1 1 . 7 2 . . . 2 . 1 . . 3 1 . . 1 1 1 . . . 3 1 6 . 2 3 Traps | -11 -10 -10 -9 -9 -8 -7 -7 -7 -7 -7 -7 -6 -6 -6 -6 -6 -5 -5 -5 -5 -5 -5 -4 -4 -4 -4 -3 -3 -3 -2 -2 -2 -1 ------- Run | Yrd Mat Min Mat Min Mat Fac Was Fac Low Low Zio Pro Fac Low Low Dat Pro Fac Ext Cet Arc Hub Fac Upp Upp Zhi Pro Res Tes Res Qua Sec Acc Traps Triggered 35 | . 2 . . . 2 4 . 6 . . . . 3 . . . . . 7 . . 2 . . . . . 3 3 2 1 . . Indirectly . | . . . . . . . . . . . . . . . . . . . . . . . . . . . . . . . . . . Trap Hack Attempts 33 | . 20 . 13 . . . . . . . . . . . . . . . . . . . . . . . . . . . . . . Triggered 1 | . 1 . . . . . . . . . . . . . . . . . . . . . . . . . . . . . . . . Disarmed 1 | . . . . . . . . . . . . . . . . . . . . . . 1 . . . . . . . . . . . Reprogrammed 3 | . 2 . 1 . . . . . . . . . . . . . . . . . . . . . . . . . . . . . . Reused . | . . . . . . . . . . . . . . . . . . . . . . . . . . . . . . . . . . Traps Extracted . | . . . . . . . . . . . . . . . . . . . . . . . . . . . . . . . . . . Installed . | . . . . . . . . . . . . . . . . . . . . . . . . . . . . . . . . . . Triggered 9 | . . . . . . . . . . 1 . 2 . . 3 . . 1 . . . . . 2 . . . . . . . . . Objects Rigged 4 | . . . . . . . . 4 . . . . . . . . . . . . . . . . . . . . . . . . . Exploded 2 | . . . . . . . . 2 . . . . . . . . . . . . . . . . . . . . . . . . . Machines | -11 -10 -10 -9 -9 -8 -7 -7 -7 -7 -7 -7 -6 -6 -6 -6 -6 -5 -5 -5 -5 -5 -5 -4 -4 -4 -4 -3 -3 -3 -2 -2 -2 -1 ---------- Run | Yrd Mat Min Mat Min Mat Fac Was Fac Low Low Zio Pro Fac Low Low Dat Pro Fac Ext Cet Arc Hub Fac Upp Upp Zhi Pro Res Tes Res Qua Sec Acc Machines Disabled 32 | . . . . 1 1 1 . 5 . . . . 1 . . . . 2 . . 3 2 . . . . 2 . 6 . 7 . 1 Max in Single Turn 2 | . . . . 1 1 1 . 2 . . . . 1 . . . . 2 . . 1 . . . . . 1 . 1 . 1 . 1 Garrison Access 8 | . . . . . . . . 1 . . . . 2 . . . . 2 . . . 1 1 . . . . 1 . . . . . Network Hub 1 | . . . . . . . . . . . . . . . . . . . . . . 1 . . . . . . . . . . . Machines Repaired . | . . . . . . . . . . . . . . . . . . . . . . . . . . . . . . . . . . Machines Dismantled . | . . . . . . . . . . . . . . . . . . . . . . . . . . . . . . . . . . Machines Sabotaged 1 | . . . . . . . . . . . . . . . . . . . . . . 1 . . . . . . . . . . . Overloaded Fab Kills . | . . . . . . . . . . . . . . . . . . . . . . . . . . . . . . . . . . Hacking | -11 -10 -10 -9 -9 -8 -7 -7 -7 -7 -7 -7 -6 -6 -6 -6 -6 -5 -5 -5 -5 -5 -5 -4 -4 -4 -4 -3 -3 -3 -2 -2 -2 -1 --------- Run | Yrd Mat Min Mat Min Mat Fac Was Fac Low Low Zio Pro Fac Low Low Dat Pro Fac Ext Cet Arc Hub Fac Upp Upp Zhi Pro Res Tes Res Qua Sec Acc Machines Accessed 144 | . 6 1 8 2 8 11 . 18 . . . . 20 . 1 3 . 13 3 1 . 7 4 . 1 3 1 7 8 6 6 3 3 Terminals 90 | . 6 . 7 2 6 4 . 8 . . . . 13 . . . . 7 3 1 . 6 2 . . . 1 3 6 3 6 3 3 Fabricators 12 | . . . . . . 1 . 5 . . . . 3 . . . . 2 . . . . . . . . . . 1 . . . . Repair Stations 14 | . . . . . 1 4 . 2 . . . . 1 . . . . 1 . . . . 1 . . . . 2 . 2 . . . Recycling Units . | . . . . . . . . . . . . . . . . . . . . . . . . . . . . . . . . . . Scanalyzers 9 | . . . 1 . 1 1 . 2 . . . . 1 . . . . . . . . . . . . . . 1 1 1 . . . Garrison Access 10 | . . . . . . 1 . 1 . . . . 2 . . . . 3 . . . 1 1 . . . . 1 . . . . . Total Hacks 438 | . 16 1 23 5 21 34 . 63 . . . . 56 . 1 23 . 31 9 2 . 14 12 . 1 13 1 20 21 40 15 11 5 Successful 243 | . 9 1 12 2 10 16 . 40 . . . . 27 . 1 23 . 18 5 1 . 7 6 . 1 13 1 4 9 22 8 3 4 Failed 194 | . 7 . 11 2 11 18 . 23 . . . . 29 . . . . 13 4 1 . 7 6 . . . . 16 12 18 7 8 1 Catastrophic 43 | . 1 . 3 1 3 2 . 6 . . . . 5 . . . . 2 1 . . 2 2 . . . . 7 2 1 . 4 1 Database Lockouts 1 | . . . . 1 . . . . . . . . . . . . . . . . . . . . . . . . . . . . . Manual 187 | . 12 . 9 7 7 8 . 23 . . . . 30 . . . . 18 8 2 . 9 6 . . . . 5 10 7 12 11 3 Terminals 274 | . 16 . 18 5 12 11 . 33 . . . . 40 . . . . 21 9 2 . 13 9 . . . 1 8 19 26 15 11 5 Fabricators 27 | . . . . . . 2 . 12 . . . . 8 . . . . 4 . . . . . . . . . . 1 . . . . Repair Stations 49 | . . . . . 5 15 . 6 . . . . 2 . . . . 2 . . . . 2 . . . . 8 . 9 . . . Recycling Units . | . . . . . . . . . . . . . . . . . . . . . . . . . . . . . . . . . . Scanalyzers 34 | . . . 5 . 4 4 . 10 . . . . 3 . . . . . . . . . . . . . . 2 1 5 . . . Garrison Access 15 | . . . . . . 2 . 2 . . . . 3 . . . . 4 . . . 1 1 . . . . 2 . . . . . Terminal Hacks 114 | . 7 1 6 2 5 2 . 9 . . . . 12 . 1 23 . 3 2 1 . 2 1 . 1 13 1 1 4 11 2 1 3 Record 12 | . . . . . . . . . . . . . . . . 6 . . . . . . . . . 5 . . 1 . . . . Part Schematic 20 | . . . . . . . . . . . . . 5 . . 10 . . . . . . . . . 4 . . 1 . . . . Robot Schematic 4 | . . . . . . . . . . . . . . . . 4 . . . . . . . . . . . . . . . . . Robot Analysis 5 | . 1 . . . . . . . . . . . . . . . . . . . . . . . . 4 . . . . . . . Prototype ID Bank 12 | . 2 . . 2 2 . . . . . . . 1 . . 3 . . . . . . . . . . . . . 2 . . . Open Door 7 | . . 1 . . . . . . . . . . . . 1 . . . . 1 . . . . 1 . 1 . 1 . . . 1 Level Access Points 2 | . . . . . . . . . . . . . . . . . . . . . . . . . . . . . . . . 1 1 Branch Access Points 8 | . . . 1 . 1 . . . . . . . 2 . . . . 1 . . . . 1 . . . . . . 1 . . 1 Terminal Index 3 | . . . . . . . . 1 . . . . 1 . . . . 1 . . . . . . . . . . . . . . . Fabricator Index 2 | . . . . . . . . 1 . . . . . . . . . 1 . . . . . . . . . . . . . . . Scanalyzer Index 1 | . . . . . . . . 1 . . . . . . . . . . . . . . . . . . . . . . . . . Alert Level 5 | . . . . . . . . 1 . . . . 1 . . . . . 1 . . . . . . . . 1 . 1 . . . Unreport Threat 4 | . . . . . . . . 2 . . . . . . . . . . 1 . . . . . . . . . . . 1 . . Locate Traps 9 | . 3 . 2 . . . . 1 . . . . 2 . . . . . . . . . . . . . . . . 1 . . . Disarm Traps 1 | . . . . . . . . . . . . . . . . . . . . . . 1 . . . . . . . . . . . Surveillance Status 1 | . . . . . . . . . . . . . . . . . . . . . . . . . . . . . . 1 . . . Patrol Status 1 | . . . . . . . . . . . . . . . . . . . . . . . . . . . . . . 1 . . . Recall Investigation 1 | . . . . . . . . 1 . . . . . . . . . . . . . . . . . . . . . . . . . Hauler Manifests 6 | . 1 . 1 . 1 1 . 1 . . . . . . . . . . . . . . . . . . . . 1 . . . . Registered Components 2 | . . . . . 1 . . . . . . . . . . . . . . . . . . . . . . . . 1 . . . Registered Prototypes 2 | . . . 1 . . . . . . . . . . . . . . . . . . . . . . . . . . 1 . . . Zone Layout 6 | . . . 1 . . 1 . . . . . . . . . . . . . . . 1 . . . . . . . 2 1 . . Fabricator Hacks 18 | . . . . . . . . 10 . . . . 4 . . . . 3 . . . . . . . . . . 1 . . . . Network Status 5 | . . . . . . . . 3 . . . . 1 . . . . . . . . . . . . . . . 1 . . . . Load Schematic 8 | . . . . . . . . 4 . . . . 2 . . . . 2 . . . . . . . . . . . . . . . Build 5 | . . . . . . . . 3 . . . . 1 . . . . 1 . . . . . . . . . . . . . . . Repair Station Hacks 27 | . . . . . 1 8 . 5 . . . . 2 . . . . 2 . . . . 2 . . . . 2 . 5 . . . Scan Component 15 | . . . . . 1 4 . 3 . . . . 1 . . . . 1 . . . . 1 . . . . 1 . 3 . . . Repair 12 | . . . . . . 4 . 2 . . . . 1 . . . . 1 . . . . 1 . . . . 1 . 2 . . . Recycling Unit Hacks . | . . . . . . . . . . . . . . . . . . . . . . . . . . . . . . . . . . Scanalyzer 20 | . . . 4 . 1 3 . 8 . . . . 1 . . . . . . . . . . . . . . . 1 2 . . . Insert Component 13 | . . . 2 . 1 2 . 5 . . . . 1 . . . . . . . . . . . . . . . 1 1 . . . Analyze 7 | . . . 2 . . 1 . 3 . . . . . . . . . . . . . . . . . . . . . 1 . . . Garrison Access Hacks 7 | . . . . . . . . 1 . . . . 2 . . . . 2 . . . . 1 . . . . 1 . . . . . Seal Access 7 | . . . . . . . . 1 . . . . 2 . . . . 2 . . . . 1 . . . . 1 . . . . . Unauthorized Hacks 57 | . 2 . 2 . 3 3 . 7 . . . . 6 . . . . 8 3 . . 5 2 . . . . . 3 4 6 2 1 Terminals 53 | . 2 . 2 . 3 3 . 5 . . . . 5 . . . . 7 3 . . 5 2 . . . . . 3 4 6 2 1 Track 3 | . . . . . . . . . . . . . . . . . . . . . . . . . . . . . . 1 1 1 . Assimilate 4 | . . . . . . 1 . 1 . . . . . . . . . 1 . . . . . . . . . . . . 1 . . Botnet 42 | . 2 . 2 . 3 2 . 3 . . . . 4 . . . . 6 2 . . 4 2 . . . . . 3 3 4 1 1 Detonate 1 | . . . . . . . . 1 . . . . . . . . . . . . . . . . . . . . . . . . . Disrupt 2 | . . . . . . . . . . . . . 1 . . . . . 1 . . . . . . . . . . . . . . Sabotage 1 | . . . . . . . . . . . . . . . . . . . . . . 1 . . . . . . . . . . . Fabricators 4 | . . . . . . . . 2 . . . . 1 . . . . 1 . . . . . . . . . . . . . . . Liberate 1 | . . . . . . . . 1 . . . . . . . . . . . . . . . . . . . . . . . . . Recompile 3 | . . . . . . . . 1 . . . . 1 . . . . 1 . . . . . . . . . . . . . . . Repair Stations . | . . . . . . . . . . . . . . . . . . . . . . . . . . . . . . . . . . Recycling Units . | . . . . . . . . . . . . . . . . . . . . . . . . . . . . . . . . . . Scanalyzers . | . . . . . . . . . . . . . . . . . . . . . . . . . . . . . . . . . . Garrison Access . | . . . . . . . . . . . . . . . . . . . . . . . . . . . . . . . . . . Data Cores Recovered 4 | . . . 1 . . . . . . . . . 1 . . . . 1 . . . 1 . . . . . . . . . . . Used 2 | . . . 1 . . . . . . . . . . . . . . . . . . 1 . . . . . . . . . . . Hacking Detections 102 | . 5 . 5 1 6 10 . 14 . . . . 16 . . . . 8 3 1 . 5 2 . . . . 7 7 6 2 2 2 Full Trace Events 7 | . . . 1 . 1 1 . 2 . . . . . . . . . . . . . 1 . . . . . . . 1 . . . Feedback Events . | . . . . . . . . . . . . . . . . . . . . . . . . . . . . . . . . . . Feedback Blocked . | . . . . . . . . . . . . . . . . . . . . . . . . . . . . . . . . . . Robot Schematics Acquired 8 | . . . . . . . . . . . 4 . . . . 4 . . . . . . . . . . . . . . . . . Robots Built . | . . . . . . . . . . . . . . . . . . . . . . . . . . . . . . . . . . Authchips . | . . . . . . . . . . . . . . . . . . . . . . . . . . . . . . . . . . Time . | . . . . . . . . . . . . . . . . . . . . . . . . . . . . . . . . . . Total Robot Build Rating . | . . . . . . . . . . . . . . . . . . . . . . . . . . . . . . . . . . Part Schematics Acquired 40 | . . . 1 . . 1 . 3 . . 14 . 5 . . 10 . . . . . . . . . 4 . . 1 1 . . . Parts Built 9 | . . . . . . . . 6 . . . . 2 . . . . 1 . . . . . . . . . . . . . . . Authchips 3 | . . . . . . . . 1 . . . . 1 . . . . 1 . . . . . . . . . . . . . . . Time 380 | . . . . . . . . 243 . . . . 53 . . . . 84 . . . . . . . . . . . . . . . Total Part Build Rating 50 | . . . . . . . . 32 . . . . 12 . . . . 6 . . . . . . . . . . . . . . . Parts Repaired 12 | . . . . . . 4 . 2 . . . . 1 . . . . 1 . . . . 1 . . . . 1 . 2 . . . Time 495 | . . . . . . 214 . 65 . . . . 38 . . . . 56 . . . . 25 . . . . 26 . 71 . . . Parts Recycled . | . . . . . . . . . . . . . . . . . . . . . . . . . . . . . . . . . . Recycled Matter . | . . . . . . . . . . . . . . . . . . . . . . . . . . . . . . . . . . Retrieved Matter . | . . . . . . . . . . . . . . . . . . . . . . . . . . . . . . . . . . Retrieved Components . | . . . . . . . . . . . . . . . . . . . . . . . . . . . . . . . . . . Parts Scanalyzed 9 | . . . 2 . 1 1 . 3 . . . . 1 . . . . . . . . . . . . . . . . 1 . . . Part Schematics Acquired 6 | . . . 1 . . 1 . 3 . . . . . . . . . . . . . . . . . . . . . 1 . . . Parts Damaged 2 | . . . . . 1 . . 1 . . . . . . . . . . . . . . . . . . . . . . . . . Bothacking | -11 -10 -10 -9 -9 -8 -7 -7 -7 -7 -7 -7 -6 -6 -6 -6 -6 -5 -5 -5 -5 -5 -5 -4 -4 -4 -4 -3 -3 -3 -2 -2 -2 -1 ------------ Run | Yrd Mat Min Mat Min Mat Fac Was Fac Low Low Zio Pro Fac Low Low Dat Pro Fac Ext Cet Arc Hub Fac Upp Upp Zhi Pro Res Tes Res Qua Sec Acc Used RIF Installer . | . . . . . . . . . . . . . . . . . . . . . . . . . . . . . . . . . . Robots Hacked . | . . . . . . . . . . . . . . . . . . . . . . . . . . . . . . . . . . Non-combat . | . . . . . . . . . . . . . . . . . . . . . . . . . . . . . . . . . . Combat . | . . . . . . . . . . . . . . . . . . . . . . . . . . . . . . . . . . Robot Hacks Applied . | . . . . . . . . . . . . . . . . . . . . . . . . . . . . . . . . . . Relay Couplers Released 3 | . . . . . . . . . . . . . . . . . . . . . . 3 . . . . . . . . . . . Machine Destruction 3 | . . . . . . . . . . . . . . . . . . . . . . 3 . . . . . . . . . . . Fabnet Peak Effective % . | . . . . . . . . . . . . . . . . . . . . . . . . . . . . . . . . . . Robots Rewired 11 | . . . . . . . . . . . . . . . . . . . 11 . . . . . . . . . . . . . . Allies Hacked . | . . . . . . . . . . . . . . . . . . . . . . . . . . . . . . . . . . Hacks Repelled . | . . . . . . . . . . . . . . . . . . . . . . . . . . . . . . . . . . Allies | -11 -10 -10 -9 -9 -8 -7 -7 -7 -7 -7 -7 -6 -6 -6 -6 -6 -5 -5 -5 -5 -5 -5 -4 -4 -4 -4 -3 -3 -3 -2 -2 -2 -1 -------- Run | Yrd Mat Min Mat Min Mat Fac Was Fac Low Low Zio Pro Fac Low Low Dat Pro Fac Ext Cet Arc Hub Fac Upp Upp Zhi Pro Res Tes Res Qua Sec Acc Total Allies 32 | . . . . . . . . . . . 5 . . . . . . 1 19 6 . . . . . . . . . . 1 . . Largest Group 14 | . . . . . . . . . . . 5 5 3 . . . . 1 11 14 9 7 . . . . . . . . 1 1 . Highest-Rated Group 936 | . . . . . . . . . . . 135 135 90 . . . . 10 453 936 713 558 . . . . . . . . 26 26 . Highest-Rated Ally 159 | . . . . . . . . . . . 31 31 31 . . . . 10 159 145 129 96 . . . . . . . . 26 26 . Total Orders 11 | . . . . . . . . . . . . . . . . . . . 10 1 . . . . . . . . . . . . . STAY 1 | . . . . . . . . . . . . . . . . . . . . 1 . . . . . . . . . . . . . RETURN 10 | . . . . . . . . . . . . . . . . . . . 10 . . . . . . . . . . . . . . Ally Attacks 416 | . . . . . . . . . . . . 22 10 . . . . . 242 54 25 63 . . . . . . . . . . . Total Damage 9623 | . . . . . . . . . . . . 292 104 . . . . . 5311 1139 658 2119 . . . . . . . . . . . Kills 60 | . . . . . . . . . . . . 2 . . . . . . 32 8 3 15 . . . . . . . . . . . Allies Corrupted . | . . . . . . . . . . . . . . . . . . . . . . . . . . . . . . . . . . Allies Melted . | . . . . . . . . . . . . . . . . . . . . . . . . . . . . . . . . . . Intel | -11 -10 -10 -9 -9 -8 -7 -7 -7 -7 -7 -7 -6 -6 -6 -6 -6 -5 -5 -5 -5 -5 -5 -4 -4 -4 -4 -3 -3 -3 -2 -2 -2 -1 ------- Run | Yrd Mat Min Mat Min Mat Fac Was Fac Low Low Zio Pro Fac Low Low Dat Pro Fac Ext Cet Arc Hub Fac Upp Upp Zhi Pro Res Tes Res Qua Sec Acc Robot Analysis Total 5 | . 1 . . . . . . . . . . . . . . . . . . . . . . . . 4 . . . . . . . Derelict Logs Recovered 18 | . . 2 . 2 . . . . 1 2 2 2 . . 2 . 3 . . . . . . 2 . . . . . . . . . Drone Launches 17 | . . . . . . . . . . . . . . . . . . . 17 . . . . . . . . . . . . . . Drone Recoveries 15 | . . . . . . . . . . . . . . . . . . . 15 . . . . . . . . . . . . . . Exploration | -11 -10 -10 -9 -9 -8 -7 -7 -7 -7 -7 -7 -6 -6 -6 -6 -6 -5 -5 -5 -5 -5 -5 -4 -4 -4 -4 -3 -3 -3 -2 -2 -2 -1 ------------- Run | Yrd Mat Min Mat Min Mat Fac Was Fac Low Low Zio Pro Fac Low Low Dat Pro Fac Ext Cet Arc Hub Fac Upp Upp Zhi Pro Res Tes Res Qua Sec Acc Turns Passed 25277 | . 1838 1364 2263 1489 1633 1334 50 1650 184 101 606 303 1334 590 936 32 818 1229 1182 214 429 320 263 247 356 110 388 673 790 774 550 132 1095 Spaces Moved 27626 | 1 621 517 1073 626 835 1808 109 2301 467 268 1231 558 2589 816 886 82 854 2089 892 154 419 502 483 531 641 169 494 1184 1169 1044 908 240 1065 Core 50 | . . . . . . . . . . . . . . . . . . . . . . . . . . . . . . . . . 50 Treads 2198 | . . . 1042 626 530 . . . . . . . . . . . . . . . . . . . . . . . . . . . . Legs 1170 | 1 621 517 31 . . . . . . . . . . . . . . . . . . . . . . . . . . . . . . Wheels . | . . . . . . . . . . . . . . . . . . . . . . . . . . . . . . . . . . Hover 24208 | . . . . . 305 1808 109 2301 467 268 1231 558 2589 816 886 82 854 2089 892 154 419 502 483 531 641 169 494 1184 1169 1044 908 240 1015 Flight . | . . . . . . . . . . . . . . . . . . . . . . . . . . . . . . . . . . Fastest Speed 28 | 120 120 260 160 170 48 42 42 34 34 34 34 34 34 34 34 34 34 28 35 112 41 41 41 41 41 41 41 34 39 34 39 44 36 Average Speed 65 | 120 257 260 171 191 148 46 42 47 34 34 34 34 39 34 41 35 70 36 91 112 56 41 41 41 44 41 41 38 41 42 42 44 56 Slowest Speed 650 | 120 260 260 260 250 480 108 42 105 102 102 102 34 102 98 98 98 98 42 112 112 112 46 41 41 108 41 102 108 46 107 110 44 650 Overloaded Moves . | . . . . . . . . . . . . . . . . . . . . . . . . . . . . . . . . . . Propulsion Burnouts . | . . . . . . . . . . . . . . . . . . . . . . . . . . . . . . . . . . Robots Hopped . | . . . . . . . . . . . . . . . . . . . . . . . . . . . . . . . . . . Cave-ins Triggered . | . . . . . . . . . . . . . . . . . . . . . . . . . . . . . . . . . . Teleports 1 | . . . . . . . . . . . . . . . . . . . . . . . . . . . . . . 1 . . . Exploration Rate (%) 61 | 2 91 94 91 97 59 38 75 51 60 56 82 58 71 70 80 70 78 41 80 82 98 50 11 70 83 61 49 31 75 25 71 24 22 Regions Visited 33 Branch Regions 21 Pre-discovered Areas 11 | . . 1 . 1 . . . . 1 . 2 1 . . . 1 1 . . . . . . . . 3 . . . . . . . Known Exits Taken 28 | . . . 1 1 1 . . 1 1 1 1 1 1 1 1 1 1 1 1 1 1 1 1 1 1 1 1 1 1 1 1 1 . Unknown Exits Taken 3 | 1 1 1 . . . . . . . . . . . . . . . . . . . . . . . . . . . . . . . Scrap Searched 27 | . . 1 . 1 . . . . . 5 4 1 . 3 3 . . . . . . . . 4 4 . 1 . . . . . . Spaces Dug 224 | . . . . . . 22 . 40 . . . . 21 10 14 . 16 22 . . . 6 4 9 5 . . 9 16 22 3 4 1 Terrain Destroyed 609 | . . . . . . 42 . 88 . 56 . . 24 15 30 . 45 83 19 . 10 6 4 9 5 . 12 9 16 24 3 4 105 Melee 174 | . . . . . . 22 . 40 . . . . 18 7 1 . 2 19 . . . 6 4 1 3 . . 9 12 22 3 4 1 Projectile 130 | . . . . . . . . . . . . . 6 8 29 . 43 5 . . 10 . . 8 2 . 10 . 4 . . . 5 AOE 299 | . . . . . . 20 . 48 . 56 . . . . . . . 59 19 . . . . . . . 2 . . . . . 95 Terrain Rammed . | . . . . . . . . . . . . . . . . . . . . . . . . . . . . . . . . . . Walls Destroyed . | . . . . . . . . . . . . . . . . . . . . . . . . . . . . . . . . . . Machines Disabled . | . . . . . . . . . . . . . . . . . . . . . . . . . . . . . . . . . . Actions | -11 -10 -10 -9 -9 -8 -7 -7 -7 -7 -7 -7 -6 -6 -6 -6 -6 -5 -5 -5 -5 -5 -5 -4 -4 -4 -4 -3 -3 -3 -2 -2 -2 -1 --------- Run | Yrd Mat Min Mat Min Mat Fac Was Fac Low Low Zio Pro Fac Low Low Dat Pro Fac Ext Cet Arc Hub Fac Upp Upp Zhi Pro Res Tes Res Qua Sec Acc Total 33043 | . 753 533 1355 859 1102 2195 114 2721 481 271 1410 652 2805 1104 1421 83 1020 2447 1204 183 547 575 533 545 695 196 595 1372 1399 1248 1027 252 1346 Wait 3102 | . 22 . 156 185 117 235 . 222 6 . 162 81 92 266 494 . 109 226 131 8 59 40 14 3 39 . 52 127 108 82 15 1 50 Move 27593 | . 620 516 1072 625 834 1808 108 2300 466 267 1230 557 2588 815 885 81 853 2088 891 153 418 501 482 530 640 168 493 1183 1168 1043 907 239 1064 Hop . | . . . . . . . . . . . . . . . . . . . . . . . . . . . . . . . . . . Pick Up 143 | . 14 5 6 2 15 14 3 12 . . . . 11 . . . . 5 9 3 2 1 5 . . 3 . 3 7 4 18 . 1 Fast Attach 161 | . 4 . 8 1 10 4 . 5 . . 5 . 4 . . . . 7 1 2 9 5 5 . . 7 . 11 15 11 14 2 31 Attach 70 | . 1 1 2 3 8 6 . 2 . . . . 3 . . . . 5 6 . 1 . 2 . . . . 2 1 6 11 . 10 Detach 12 | . 2 . . 1 2 1 . . . . . . . . . . . 2 . . . . . . . . . . . 1 1 . 2 Swap 326 | . 8 1 9 2 9 27 . 20 4 2 5 5 20 8 12 2 13 42 12 5 11 2 6 3 5 1 12 10 30 21 5 2 12 Drop 287 | . 6 5 13 3 31 12 3 20 . . 5 1 16 . . . . 20 9 4 15 5 9 . 1 9 . 19 26 2 26 2 25 Fire 522 | . 47 4 70 31 71 6 . 1 . 2 . . 6 8 29 . 43 7 1 8 32 . . 8 1 . 34 . 5 14 . . 94 Melee 552 | . . . . . 5 66 . 83 5 . 3 8 40 7 1 . 2 45 26 . . 21 10 1 9 8 4 17 39 62 27 6 57 Ram . | . . . . . . . . . . . . . . . . . . . . . . . . . . . . . . . . . . Kick 10 | . 9 1 . . . . . . . . . . . . . . . . . . . . . . . . . . . . . . . Crush 12 | . . . 6 6 . . . . . . . . . . . . . . . . . . . . . . . . . . . . . Escape Stasis 150 | . . . . . . 16 . 56 . . . . 25 . . . . . 48 . . . . . . . . . . 2 3 . . Rewire 70 | . . . . . . . . . . . . . . . . . . . 70 . . . . . . . . . . . . . . Trap 33 | . 20 . 13 . . . . . . . . . . . . . . . . . . . . . . . . . . . . . . Miscellaneous . | . . . . . . . . . . . . . . . . . . . . . . . . . . . . . . . . . . Route ------- -11/Scrapyard -10/Materials (discovered 5 exits: *Mat x3 / *Min x2) -10/Mines (discovered 2 exits: *Mat x2) -9/Materials (discovered 5 exits: *Mat x3 / *Min x2) -9/Mines (discovered 3 exits: *Mat x2 / [*Exi]) -8/Materials (discovered 3 exits: *Fac x2 / Sto) -7/Factory -7/Waste -7/Factory (discovered 2 exits: *Fac / *Low) -7/Lower Caves -7/Lower Caves -7/Zion -6/Proximity Caves -6/Factory (discovered 2 exits: *Low x2) -6/Lower Caves -6/Lower Caves (discovered 2 exits: *Fac / *Dat) -6/Data Miner -5/Proximity Caves -5/Factory (discovered 5 exits: *Fac / Upp x2 / *Ext x2) -5/Extension (discovered 2 exits: *Fac / *Cet) -5/Cetus (discovered 2 exits: *Fac / *Arc) -5/Archives (discovered 3 exits: *Fac / *Hub x2) -5/Hub_04(d) (discovered 2 exits: *Fac x2) -4/Factory (discovered 2 exits: *Upp x2) -4/Upper Caves -4/Upper Caves (discovered 2 exits: *Res / *Zhi) -4/Zhirov -3/Proximity Caves -3/Research (discovered 2 exits: Res / *Tes) -3/Testing -2/Research (discovered 2 exits: *Qua x2) -2/Quarantine -2/Section 7 -1/Access (discovered 2 exits: *Sur / Com) To Epsilon Eridani History --------- Turn | Location | Event 1 | -11/Scrapyard | Discovered new exit (range 0) 1 | -11/Scrapyard | Entered Materials 313 | -10/Materials | Build established: Mutant 444 | -10/Materials | Discovered new exit (range 14) 774 | -10/Materials | Discovered new exit (range 9) 1005 | -10/Materials | Discovered new exit (range 10) 1038 | -10/Materials | Build established: Scavenger-Mutant 1501 | -10/Materials | Discovered new exit (range 13) 1695 | -10/Materials | Discovered new exit (range 16) 1839 | -10/Materials | Entered Mines 1863 | -10/Mines | Learned location of 1 exit from Materials 1905 | -10/Mines | Met a Derelict bent on vengeance 2382 | -10/Mines | A weapon hastily lodged in a ceiling crevice suddenly fell to the ground 2539 | -10/Mines | Discovered new exit (range 5) 3057 | -10/Mines | Discovered new exit (range 8) 3102 | -10/Mines | Met a Derelict who couldn't figure out how to use a Trap Extractor 3203 | -10/Mines | Entered Materials 3203 | -9/Materials | Evolved 2 slots: Propulsion x2 3203 | -9/Materials | Discovered new exit (range 15) 3204 | -9/Materials | Identified exit to Materials 3503 | -9/Materials | Identified exit to Mines 3765 | -9/Materials | Discovered exit to Materials (range 10) 4781 | -9/Materials | Build established: Mutant 5323 | -9/Materials | Discovered exit to Materials (range 5) 5466 | -9/Materials | Entered Mines 5533 | -9/Mines | Found a hidden stash of uninstalled traps 5617 | -9/Mines | Deemed a non-threat by the Exiles lab entrance 5617 | -9/Mines | Discovered new exit (range 5) 5854 | -9/Mines | Assembled infested the area 6132 | -9/Mines | Discovered exit to Materials (range 2) 6148 | -9/Mines | Central database locked down 6424 | -9/Mines | Found a damaged Exp. Sensor Array with a note attached 6428 | -9/Mines | Found Prototype Device 6428 | -9/Mines | Identified Exp. Sensor Array 6515 | -9/Mines | Core integrity fell below 50% 6589 | -9/Mines | Learned location of Storage (-8) 6913 | -9/Mines | Discovered exit to Materials (range 9) 6955 | -9/Mines | Entered Materials 6955 | -8/Materials | Evolved 2 slots: Utility x2 6956 | -8/Materials | Identified exit to Factory 6956 | -8/Materials | Identified exit to Storage 7053 | -8/Materials | Garrison activated, responded to threat 7944 | -8/Materials | Discovered exit to Factory (range 8) 8588 | -8/Materials | Entered Factory 8588 | -7/Factory | Evolved 2 slots: Propulsion x1, Utility x1 8780 | -7/Factory | Repaired Broken Exp. Sensor Array? 8945 | -7/Factory | Destroyed 7 combat bots 9044 | -7/Factory | Repaired Deuterium Engine 9075 | -7/Factory | Repaired Airjet 9096 | -7/Factory | Build established: Hacker-Mutant 9103 | -7/Factory | Discovered new exit (range 5) 9105 | -7/Factory | Identified exit to Factory 9649 | -7/Factory | Repaired Exp. Sensor Array 9922 | -7/Factory | Manually triggered Chute Trap 9922 | -7/Factory | Sucked down chute 9922 | -7/Factory | Entered Waste 9929 | -7/Waste | Spotted C-40 Crusher 9929 | -7/Waste | Spotted C-40 Crusher 9946 | -7/Waste | Spotted C-40 Crusher 9955 | -7/Waste | Spotted C-40 Crusher 9956 | -7/Waste | Spotted C-40 Crusher 9957 | -7/Waste | Spotted C-40 Crusher 9962 | -7/Waste | Found Powered Armor 9969 | -7/Waste | Discovered new exit (range 10) 9972 | -7/Waste | Identified exit to Factory 9972 | -7/Waste | Entered Factory 10069 | -7/Factory | Discovered new exit (range 12) 10073 | -7/Factory | Identified exit to Lower Caves 10153 | -7/Factory | Found Prototype Launcher 10155 | -7/Factory | Identified Rocket Array 10328 | -7/Factory | Repaired Broken Imp. System Guard 10451 | -7/Factory | Discovered exit to Factory (range 12) 10501 | -7/Factory | Fabricated Powered Armor? 10555 | -7/Factory | Repaired Powered Armor 11364 | -7/Factory | Fabricated Linear Gravjet? 11535 | -7/Factory | Fabricated Linear Gravjet (x2) 11622 | -7/Factory | Entered Lower Caves 11794 | -7/Lower Caves | Learned location of Zion (-7) 11798 | -7/Lower Caves | Discovered new exit (range 9) 11802 | -7/Lower Caves | Identified exit to Lower Caves 11806 | -7/Lower Caves | Entered another Lower Caves area 11891 | -7/Lower Caves | Encountered a Warlord checkpoint 11894 | -7/Lower Caves | Learned Factory terminal intel 11898 | -7/Lower Caves | Learned Factory emergency access door positions 11902 | -7/Lower Caves | Discovered new exit (range 15) 11907 | -7/Lower Caves | Identified exit to Zion 11907 | -7/Lower Caves | Entered Zion 11918 | -7/Zion | System corruption cleaned by Quarantine Array 11942 | -7/Zion | Visited the Megawrench Repair Shop 11953 | -7/Zion | Discovered new exit (range 16) 11956 | -7/Zion | Gained Derelict followers 11959 | -7/Zion | Learned Factory emergency access door positions 11997 | -7/Zion | Learned location of Data Miner (-6) 12006 | -7/Zion | Given A8's code to call for help 12053 | -7/Zion | Learned location of Quarantine (-2) 12133 | -7/Zion | Learned Factory emergency access door positions 12213 | -7/Zion | Found Prototype Processor 12213 | -7/Zion | Identified Exp. Armor Integrity Analyzer 12216 | -7/Zion | Found Prototype Processor 12216 | -7/Zion | Identified Exp. Melee Analysis Suite 12218 | -7/Zion | Found Prototype Processor 12218 | -7/Zion | Identified Exp. Targeting Computer 12221 | -7/Zion | Found Prototype Processor 12221 | -7/Zion | Identified Exp. Target Analyzer 12294 | -7/Zion | System corruption cleaned by Quarantine Array 12423 | -7/Zion | Megawrench repaired 7 parts 12441 | -7/Zion | Identified exit to Proximity Caves 12513 | -7/Zion | Entered Proximity Caves 12513 | -6/Proximity Caves | Accompanied by 5 allies 12534 | -6/Proximity Caves | Learned Factory interactive machine intel 12651 | -6/Proximity Caves | Discovered exit to Factory (range 12) 12740 | -6/Proximity Caves | Encountered a Derelict sapper outpost 12816 | -6/Proximity Caves | Entered Factory 12816 | -6/Factory | Accompanied by 3 allies 12816 | -6/Factory | Evolved 2 slots: Power x1, Utility x1 12817 | -6/Factory | Identified exit to Lower Caves 12819 | -6/Factory | Loaded intel: 51 interactive machine locations 12820 | -6/Factory | Loaded intel: 26 terminal locations 13102 | -6/Factory | Build established: Hacker-Scout 13447 | -6/Factory | Fabricated Linear Gravjet (x2) 13636 | -6/Factory | Garrison activated, responded to threat 14042 | -6/Factory | Repaired Reaction Control System 14150 | -6/Factory | Entered Lower Caves 14371 | -6/Lower Caves | Discovered new exit (range 9) 14739 | -6/Lower Caves | Identified exit to Lower Caves 14740 | -6/Lower Caves | Entered another Lower Caves area 14768 | -6/Lower Caves | Learned Factory terminal intel 14768 | -6/Lower Caves | Discovered new exit (range 8) 14947 | -6/Lower Caves | Learned Factory terminal intel 15672 | -6/Lower Caves | Discovered new exit (range 7) 15674 | -6/Lower Caves | Identified exit to Data Miner 15676 | -6/Lower Caves | Entered Data Miner 15676 | -6/Data Miner | Discovered new exit (range 6) 15683 | -6/Data Miner | Met Data Miner 15691 | -6/Data Miner | Learned location of Section 7 (-2) 15691 | -6/Data Miner | Acquired the access code to Warlord's prototype stash 15695 | -6/Data Miner | Received God Mode back door access code from Data Miner 15703 | -6/Data Miner | Identified exit to Proximity Caves 15708 | -6/Data Miner | Entered Proximity Caves 16211 | -5/Proximity Caves | Build established: Hacker-Assassin 16300 | -5/Proximity Caves | Learned Factory stockpile data 16476 | -5/Proximity Caves | Discovered new exit (range 14) 16523 | -5/Proximity Caves | Identified exit to Factory 16526 | -5/Proximity Caves | Entered Factory 16526 | -5/Factory | Evolved 2 slots: Propulsion x1, Utility x1 16527 | -5/Factory | Identified exit to Upper Caves 16530 | -5/Factory | Loaded intel: 27 terminal locations 16537 | -5/Factory | Identified exit to Extension 16629 | -5/Factory | Repaired Linear Gravjet 16952 | -5/Factory | Build established: Hacker-Mutant 17168 | -5/Factory | Destroyed 7 combat bots 17542 | -5/Factory | Discovered new exit (range 21) 17592 | -5/Factory | Cargo convoy interrupted 17597 | -5/Factory | Fabricated Combat Drone Bay (x1) 17752 | -5/Factory | Build established: Hacker-Scout 17755 | -5/Factory | Entered Extension 18345 | -5/Extension | Rescued A7 18353 | -5/Extension | Lost 3 allies 18363 | -5/Extension | Rescued a captive Derelict 18369 | -5/Extension | Rescued a captive Derelict 18485 | -5/Extension | Build established: Commander-Mutant 18497 | -5/Extension | Spotted B-75 Beast 18515 | -5/Extension | Spotted B-75 Beast 18527 | -5/Extension | Allies destroyed B-75 Beast 18534 | -5/Extension | Allies destroyed B-75 Beast 18567 | -5/Extension | Lost 3 allies 18580 | -5/Extension | Rescued a captive Derelict 18580 | -5/Extension | Rescued a captive Derelict 18625 | -5/Extension | Rescued a captive Derelict 18626 | -5/Extension | Rescued a captive Derelict 18697 | -5/Extension | Lost 3 allies 18709 | -5/Extension | Rescued a captive Derelict 18711 | -5/Extension | Rescued a captive Derelict 18867 | -5/Extension | Discovered new exit (range 10) 18870 | -5/Extension | Discovered new exit (range 6) 18879 | -5/Extension | Identified exit to Factory 18915 | -5/Extension | Identified exit to Cetus 18937 | -5/Extension | Entered Cetus 18937 | -5/Cetus | Accompanied by 9 allies (A7) 18942 | -5/Cetus | Acquired a Cetus Manufacturing Module code from A7 18951 | -5/Cetus | Spotted Cetus Guard 18951 | -5/Cetus | Spotted Cetus Guard 18951 | -5/Cetus | Spotted Cetus Guard 18958 | -5/Cetus | Allies destroyed Cetus Guard 18963 | -5/Cetus | Spotted Cetus Guard 18969 | -5/Cetus | Destroyed Cetus Guard 18970 | -5/Cetus | Allies destroyed Cetus Guard 18972 | -5/Cetus | Allies destroyed Cetus Guard 19022 | -5/Cetus | Escorted A7 to Cetus Mainframe 19033 | -5/Cetus | Started Cetus Manufacturing Module 19036 | -5/Cetus | Enhanced Grunt warped into view, answering call for help 19038 | -5/Cetus | Enhanced Grunt warped into view, answering call for help 19039 | -5/Cetus | Discovered new exit (range 21) 19058 | -5/Cetus | Manufactured an Enhanced Grunt 19067 | -5/Cetus | Spotted Cetus Guard 19068 | -5/Cetus | Spotted Cetus Guard 19068 | -5/Cetus | Spotted Cetus Guard 19072 | -5/Cetus | Destroyed Cetus Guard 19072 | -5/Cetus | Spotted Cetus Guard 19076 | -5/Cetus | Allies destroyed Cetus Guard 19078 | -5/Cetus | Discovered exit to Factory (range 21) 19079 | -5/Cetus | Allies destroyed Cetus Guard 19083 | -5/Cetus | Manufactured an Enhanced Grunt 19084 | -5/Cetus | Allies destroyed Cetus Guard 19095 | -5/Cetus | Met Revision 17 19108 | -5/Cetus | Manufactured an Enhanced Grunt 19133 | -5/Cetus | Manufactured an Enhanced Grunt 19143 | -5/Cetus | Identified exit to Archives 19151 | -5/Cetus | Entered Archives 19151 | -5/Archives | Accompanied by 10 allies (A7) 19156 | -5/Archives | Received a hacking code to weaken MAIN.C 19179 | -5/Archives | Discovered new exit (range 22) 19198 | -5/Archives | Discovered exit to Factory (range 17) 19219 | -5/Archives | Discovered new exit (range 15) 19559 | -5/Archives | Identified exit to Hub_04(d) 19580 | -5/Archives | Entered Hub_04(d) 19580 | -5/Hub_04(d) | Accompanied by 7 allies 19633 | -5/Hub_04(d) | Found Prototype Device 19633 | -5/Hub_04(d) | Identified Exp. Thermal Shield 19795 | -5/Hub_04(d) | Discovered exit to Factory (range 7) 19852 | -5/Hub_04(d) | Discovered exit to Factory (range 8) 19880 | -5/Hub_04(d) | First assault squad dispatched 19887 | -5/Hub_04(d) | Build established: Scavenger-Scout 19887 | -5/Hub_04(d) | Network Hub disabled 19888 | -5/Hub_04(d) | Spotted Lightning 19888 | -5/Hub_04(d) | Spotted Lightning 19888 | -5/Hub_04(d) | Spotted Lightning 19888 | -5/Hub_04(d) | Spotted Lightning 19888 | -5/Hub_04(d) | Spotted Lightning 19897 | -5/Hub_04(d) | Spotted Lightning 19900 | -5/Hub_04(d) | Entered Factory 19900 | -4/Factory | Evolved 2 slots: Utility x2 19902 | -4/Factory | Loaded intel: 26 terminal locations 19908 | -4/Factory | Identified exit to Upper Caves 20000 | -4/Factory | Repaired Lgt. Fission Core 20163 | -4/Factory | Entered Upper Caves 20166 | -4/Upper Caves | Learned 4 Research zone layouts 20168 | -4/Upper Caves | Learned 4 Research zone layouts 20189 | -4/Upper Caves | Build established: Scavenger-Ninja 20326 | -4/Upper Caves | Encountered a Warlord checkpoint 20358 | -4/Upper Caves | Spotted B-86 Titan 20403 | -4/Upper Caves | Discovered new exit (range 10) 20407 | -4/Upper Caves | Identified exit to Upper Caves 20410 | -4/Upper Caves | Entered another Upper Caves area 20479 | -4/Upper Caves | Discovered new exit (range 9) 20716 | -4/Upper Caves | Discovered new exit (range 20) 20763 | -4/Upper Caves | Spotted B-86 Titan 20765 | -4/Upper Caves | Identified exit to Zhirov 20766 | -4/Upper Caves | Entered Zhirov 20766 | -4/Zhirov | Discovered new exit (range 3) 20774 | -4/Zhirov | Met Zhirov 20781 | -4/Zhirov | Learned location of Testing (-3) 20781 | -4/Zhirov | Learned location of Command (-1) 20785 | -4/Zhirov | Zhirov requested help retrieving the SGEMP Prototype 20795 | -4/Zhirov | Found Alien Artifact 20795 | -4/Zhirov | Identified Integrated Reactor 20795 | -4/Zhirov | Installed Integrated Reactor, increased core energy generation (+10) 20857 | -4/Zhirov | Found Alien Artifact 20875 | -4/Zhirov | Identified exit to Proximity Caves 20876 | -4/Zhirov | Entered Proximity Caves 21013 | -3/Proximity Caves | Snuck into a huge 0b10 base via the rear entrance 21243 | -3/Proximity Caves | Discovered new exit (range 3) 21244 | -3/Proximity Caves | Identified exit to Research 21264 | -3/Proximity Caves | Entered Research 21264 | -3/Research | Evolved 2 slots: Propulsion x1, Utility x1 21265 | -3/Research | Identified exit to Research 21439 | -3/Research | Discovered new exit (range 4) 21440 | -3/Research | Identified exit to Testing 21464 | -3/Research | Revision forces began assault on 0b10 21470 | -3/Research | Found Prototype Device 21470 | -3/Research | Identified Exp. EM Disruption Field 21644 | -3/Research | Repaired Broken Cmb. Gravmag System 21698 | -3/Research | Lost 3 allies 21703 | -3/Research | Build established: Hacker-Ninja 21937 | -3/Research | Entered Testing 22027 | -3/Testing | Found Prototype Device 22027 | -3/Testing | Identified 2N-1CE's Frost Array 22063 | -3/Testing | Found Prototype Ballistic Cannon 22063 | -3/Testing | Identified Omega Cannon 22151 | -3/Testing | Found Prototype Energy Cannon 22151 | -3/Testing | Identified Cld. Nova Cannon 22293 | -3/Testing | Found Prototype Processor 22355 | -3/Testing | Found Prototype Ballistic Gun 22355 | -3/Testing | Identified Hyp. Multirail 22422 | -3/Testing | Discovered exit to Research (range 20) 22716 | -3/Testing | Found Med. Regenerative Plating 22727 | -3/Testing | Entered Research 22727 | -2/Research | Evolved 2 slots: Power x1, Propulsion x1 22821 | -2/Research | Repaired Adv. Transmission Jammer 22862 | -2/Research | Repaired Exp. Propulsion Shielding 22881 | -2/Research | Identified exit to Quarantine 22992 | -2/Research | Build established: Hacker-Scout 23020 | -2/Research | Identified Exp. Signal Interpreter 23217 | -2/Research | Identified Transdimensional Reconstructor 23217 | -2/Research | Warped through subspace 23375 | -2/Research | Spotted B-90 Cyclops 23375 | -2/Research | Spotted B-90 Cyclops 23501 | -2/Research | Entered Quarantine 23529 | -2/Quarantine | Lost 11 parts (5n5u1w) 23571 | -2/Quarantine | Found Alien Artifact 23573 | -2/Quarantine | Found Transdimensional Reconstructor 23587 | -2/Quarantine | Build established: Hacker-Mutant 23669 | -2/Quarantine | Found Prototype Launcher 23776 | -2/Quarantine | Found Alien Slashing Weapon 23776 | -2/Quarantine | Identified Sigix Broadsword 23805 | -2/Quarantine | Cryocooling Duct disabled 23820 | -2/Quarantine | Ambient heat levels rising (+20) 23820 | -2/Quarantine | Non-combat units ordered to evacuate 23832 | -2/Quarantine | Identified Ragnarok Missile Launcher 23833 | -2/Quarantine | Found Alien Impact Weapon 23833 | -2/Quarantine | Identified Core Stripper 23870 | -2/Quarantine | Found Alien Artifact 23870 | -2/Quarantine | Identified Phase Redirector 23898 | -2/Quarantine | Found Alien Artifact 23918 | -2/Quarantine | Spotted Fortress 23930 | -2/Quarantine | Destroyed Fortress 23938 | -2/Quarantine | Found Prototype Device 23938 | -2/Quarantine | Identified Thermal Barrier 23940 | -2/Quarantine | Found Prototype Device 23940 | -2/Quarantine | Identified Exp. Force Field 23951 | -2/Quarantine | Found Prototype Reactor 23951 | -2/Quarantine | Identified Vortex Chain Reactor 23955 | -2/Quarantine | Found Prototype Protection 23955 | -2/Quarantine | Identified Centrium Heavy Armor Plating 23999 | -2/Quarantine | Found Exp. EM Disruption Field 24040 | -2/Quarantine | Discovered new exit (range 6) 24042 | -2/Quarantine | Identified exit to Section 7 24051 | -2/Quarantine | Entered Section 7 24051 | -2/Section 7 | Accompanied by 1 ally 24052 | -2/Section 7 | Spotted S7 Guard 24056 | -2/Section 7 | Identified exit to Access 24104 | -2/Section 7 | Spotted S7 Guard 24145 | -2/Section 7 | Found Prototype Hackware 24145 | -2/Section 7 | Identified Exp. System Shield 24152 | -2/Section 7 | Spotted Alpha 7 24152 | -2/Section 7 | Spotted Alpha 7 24179 | -2/Section 7 | Spotted B-90 Cyclops 24183 | -2/Section 7 | Entered Access 24183 | -1/Access | Evolved 2 slots: Utility x2 24376 | -1/Access | Build established: Hacker-Ninja 24382 | -1/Access | Identified exit to Surface 24382 | -1/Access | Identified exit to Command 24473 | -1/Access | Search patrols dispatched 24785 | -1/Access | Lost 11 parts (2p2n6u1w) 24975 | -1/Access | First assault squad dispatched 25172 | -1/Access | Lost 14 parts (2p5n5u2w) 25178 | -1/Access | Identified Subatomic Replicator 25178 | -1/Access | Used Subatomic Replicator to replicate Lrg. Storage Unit 25267 | -1/Access | Core integrity fell below 50% 25276 | -1/Access | Released all parts (5) 25278 | *** | Escaped! Last Messages --------------- 25267_ Adv. Target Analyzer temporarily disabled. 25267_ Cld. Nova Cannon temporarily disabled. 25267_ Adv. Target Analyzer temporarily disabled. 25267_ U-05 Engineer lays Concrete. 25269_ Penetrated by Slug. 25269_ Lgt. Quantum Reactor destroyed. 25269_ U-05 Engineer lays Concrete. 25272_ Slug penetrates Reinforced Barrier. 25272_ U-05 Engineer lays Concrete. 25273_ Acquired Hvy. Laser. 25274_ U-05 Engineer lays Concrete. 25276_ Penetrated by Slug. 25276_ U-05 Engineer lays Concrete. 25276_ Released Cld. Nova Cannon. 25276_ Released Adv. Target Analyzer. 25276_ Released Exp. Optical Array. 25276_ Released Adv. Target Analyzer. 25276_ Released Hvy. Laser. 25277_ U-05 Engineer lays Concrete. 25278_ Extracted 1 energy. Map ----- +----------------------------------------------------+ | """"" #?## # ? ##?????????????????????#### | | """""#?## # ? ##?????????????????????# | | """" #?## # ? " ##?????????????????????# | | " ??## # """ ##?????????????????????# * | | ????## # """ ##??????????????????####### | | #### # " ##?????????????????######## | | #+########## # ##???????????????### # | | + + ##???????######### # # | | # # [ ##?###?### # # # | | # ############# ### ####### | | # ###########;#;###"########!!%[#= | | # [!!!! ! ! ==%!%[![%=!#=*! | | ############ !%=* ! * g *==[![%=/%%/!!![ | | ###############+#####|! m! = ];########!%=!#!==%" | | ######### =%* ###[h= %= # ### ###=!## = | | ######### ###!% [%! " #= #**## | | + !! ###=! *= ! # # # [## "" | | ######### ! ! ### =!=!"### + %## "" | | ######### !! ### = ""### # ####### | | ##?????## ### !*"### # | | ##?????## ## ! ] ## # | | ##?????## ### u%![ ### # ####### | | ##?????############## !!!! ### # ###???? | | ##?????############## !!* ### # ##????? | | ?????????????????## ! # # # ##????? | | ???????????????????## @" ### # ##????? | | ???????????????????## "" ### # ##????? | | ???????????????????## ### + ##????? | | ???????????????????## ##########+###????? | | ???????????????????## ##???????? ????? | | ???????????????????##""" """" ##???????? ???????? | | ???????????????????##"?"" ??"" ##???????? ???????? | | ?????????????????????????"???? #????????? ???????? | | ??????????????????????????????"#????????? ???????? | | ????????????????????????????????????????? ???????? | | ????????????????????????????????????????? ???????? | | ?????????????????????????????????????????????????? | | ?????????????????????????????????????????????????? | | ?????????????????????????????????????????????????? | | ?????????????????????????????????????????????????? | | ?????????????????????????????????????????????????? | | ?????????????????????????????????????????????????? | | ?????????????????????????????????????????????????? | | ?????????????????????????????????????????????????? | | ?????????????????????????????????????????????????? | | ?????????????????????????????????????????????????? | | ?????????????????????????????????????????????????? | | ?????????????????????????????????????????????????? | | ?????????????????????????????????????????????????? | | ?????????????????????????????????????????????????? | +----------------------------------------------------+ Best States ------------- Heat Dissipation 152 Energy Generation 80 Energy Capacity 800 Matter Stores 300 Matter Capacity 300 Sight Range 23 Robot Scan Range 20 Terrain Scan Density 10 ECM Strength 2 Jamming Range 16 Cloak Strength 3 Power Amplification 30 Armor Coverage 680 Resistance: TH 50 Resistance: EM 75 Propulsion Shielding 90 Weapon Shielding 90 Phase Shifting 15 Evasion (%) 75 Melee Accuracy 18 Target Analysis 12 Recoil Reduction 4 Offensive Hacking 38 Defensive Hacking 16 Authchip Count 1 Item Schematics ----------------- Lrg. Storage Unit | -9/Materials | Scanalyzed Exp. Sensor Array | -7/Factory | Scanalyzed Powered Armor | -7/Factory | Scanalyzed Linear Gravjet | -7/Factory | Scanalyzed Microactuators | -7/Factory | Scanalyzed Phase Cannon | -7/Zion | Archive Mak. Leg | -7/Zion | Archive Imp. System Restoration Module | -7/Zion | Archive Mak. Flight Unit | -7/Zion | Archive Coil Gun | -7/Zion | Archive Hvy. Ion Cannon | -7/Zion | Archive Imp. Recalibrator | -7/Zion | Archive Imp. Component Analysis Suite | -7/Zion | Archive Mak. Spear | -7/Zion | Archive 0b10 Decoder Chip [Skirmisher] | -7/Zion | Archive Mak. Shrapnel Gun | -7/Zion | Archive Hvy. Flak Cannon | -7/Zion | Archive Hvy. Battle Rifle | -7/Zion | Archive Angular Momentum Engine | -7/Zion | Archive Imp. Reaction Control System | -6/Factory | Hacked Imp. Gravmag System | -6/Factory | Hacked Gravity Neutralizer | -6/Factory | Hacked Cmb. Airjet | -6/Factory | Hacked Adv. Transmission Jammer | -6/Factory | Hacked Combat Drone Bay | -6/Data Miner | Free Lgt. Regenerative Plating | -6/Data Miner | Free Enh. Armored Leg | -6/Data Miner | Free Imp. Matter Compressor | -6/Data Miner | Free Neutron Cannon | -6/Data Miner | Free Imp. Linear Gravjet | -6/Data Miner | Free Quantum Capacitor | -6/Data Miner | Free HERF Cannon | -6/Data Miner | Free Imp. Focal Shield | -6/Data Miner | Free Adv. Cryofiber Web | -6/Data Miner | Free Assault Drone Bay | -4/Zhirov | Free Exp. Heat Sink | -4/Zhirov | Free Exp. Optical Array | -4/Zhirov | Free Imp. Arc Thrower | -4/Zhirov | Free Med. Regenerative Plating | -3/Testing | Hacked Exp. Signal Interpreter | -2/Research | Scanalyzed Robot Schematics ------------------ S-27 Virus | -7/Zion | Archive B-48 Gladiator | -7/Zion | Archive H-55 Commando | -7/Zion | Archive L-61 Swordsman | -7/Zion | Archive A-15 Conveyor | -6/Data Miner | Free R-10 Processor | -6/Data Miner | Free Y-54 Guardian | -6/Data Miner | Free B-60 Warrior | -6/Data Miner | Free Fabricated ------------ Powered Armor | x2 | -7/Factory Linear Gravjet | x2 | -7/Factory Linear Gravjet | x2 | -7/Factory | Authchip Linear Gravjet | x2 | -6/Factory | Authchip Combat Drone Bay | x1 | -5/Factory | Authchip Alien Tech Used ----------------- Integrated Reactor Transdimensional Reconstructor Sigix Broadsword Core Stripper Phase Redirector Subatomic Replicator Achievements -------------- Ambidextrous Wheee! Challenges ------------ None Game ------ Seed EtherialDisposableBeam Manual? 0 Play Time 04:40:59 Cumulative 264.5 hours Start 2024.06.08 @ 14:01:20 End 2024.06.09 @ 20:42:51 Sessions 11 Manual Loads 0 Difficulty Rogue Special Mode None Game No. 314 Rogue 314 Adventurer 0 Explorer 0 Win Type 0 Total 12 Types 6/1/2/1/1/0/0/1/0 Lore% 74 Gallery% 83 Achievement% 72 Wizard Run 0 Options --------- Layout 0 ASCII 0 Keyboard 0 Movement Numpad Keybinds 0 Fullscreen 1 Font 18/SmallcapsGlow Map View 76x50 Zoom Use 0% Tactical HUD 1 Map Filters NONE Filters NONE Steam 1 RUN: 5d2daff5-39c6-4eea-95bb-2cfdbcff50d9